Workbook

Sheet Sheet1 (hidden)
A1: =0 -> 0

Sheet Sheet2 (hidden)
A1: =0 -> 0

Sheet Sheet3 (hidden)
A1: =0 -> 0

Sheet Sheet4 (hidden)
A1: =0 -> 0

Sheet Sheet5 (hidden)
A1: =0 -> 0

Sheet Sheet6 (hidden)
A1: =0 -> 0

Sheet Sheet7 (hidden)
A1: =0 -> 0

Sheet Sheet8 (hidden)
A1: =0 -> 0

Sheet Sheet9 (hidden)
A1: =0 -> 0

Sheet Sheet10 (hidden)
A1: =0 -> 0

Sheet Sheet11 (hidden)
A1: =0 -> 0

Sheet Sheet12 (hidden)
A1: =0 -> 0

Sheet Sheet13 (hidden)
A1: =0 -> 0

Sheet Sheet14 (hidden)
A1: =0 -> 0

Sheet Sheet15 (hidden)
A1: =0 -> 0

Sheet Sheet16 (hidden)
A1: =0 -> 0

Sheet Sheet17 (hidden)
A1: =0 -> 0

Sheet Sheet18 (hidden)
A1: =0 -> 0

Sheet Sheet19 (hidden)
A1: =0 -> 0

Sheet Sheet20 (hidden)
A1: =0 -> 0

Sheet Sheet21 (hidden)
A1: =0 -> 0

Sheet Sheet22 (hidden)
A1: =0 -> 0

Sheet Sheet23 (hidden)
A1: =0 -> 0

Sheet Sheet24 (hidden)
A1: =0 -> 0

Sheet Sheet25 (hidden)
A1: =0 -> 0

Sheet Sheet26 (hidden)
A1: =0 -> 0

Sheet Sheet27 (hidden)
A1: =0 -> 0

Sheet Sheet28 (hidden)
A1: =0 -> 0

Sheet Sheet29 (hidden)
A1: =0 -> 0

Sheet Sheet30 (hidden)
A1: =0 -> 0

Sheet Sheet31 (hidden)
A1: =0 -> 0

Sheet Sheet32 (hidden)
A1: =0 -> 0

Sheet Sheet33 (hidden)
A1: =0 -> 0

Sheet Sheet34 (hidden)
A1: =0 -> 0

Sheet Sheet35 (hidden)
A1: =0 -> 0

Sheet Sheet36 (hidden)
A1: =0 -> 0

Sheet Sheet37 (hidden)
A1: =0 -> 0

Sheet Sheet38 (hidden)
A1: =0 -> 0

Sheet Sheet39 (hidden)
A1: =0 -> 0

Sheet Sheet40 (hidden)
A1: =0 -> 0

Sheet Sheet41 (hidden)
A1: =0 -> 0

Sheet Sheet42 (hidden)
A1: =0 -> 0

Sheet Sheet43 (hidden)
A1: =0 -> 0

Sheet Sheet44 (hidden)
A1: =0 -> 0

Sheet Sheet45 (hidden)
A1: =0 -> 0

Sheet Sheet46 (hidden)
A1: =0 -> 0

Sheet Sheet47 (hidden)
A1: =0 -> 0

Sheet Sheet48 (hidden)
A1: =0 -> 0

Sheet Sheet49 (hidden)
A1: =0 -> 0

Sheet Sheet50 (hidden)
A1: =0 -> 0

Sheet Sheet51 (hidden)
A1: =0 -> 0

Sheet Sheet53 (hidden)
A1: =0 -> 0

Sheet Sheet54 (hidden)
A1: =0 -> 0

Sheet Sheet55 (hidden)
A1: =0 -> 0

Sheet Sheet56 (hidden)
A1: =0 -> 0

Sheet Sheet57 (hidden)
A1: =0 -> 0

Sheet Sheet58 (hidden)
A1: =0 -> 0

Sheet Sheet59 (hidden)
A1: =0 -> 0

Sheet Sheet60 (hidden)
A1: =0 -> 0

Sheet Sheet61 (hidden)
A1: =0 -> 0

Sheet Sheet62 (hidden)
A1: =0 -> 0

Sheet Sheet63 (hidden)
A1: =0 -> 0

Sheet Sheet64 (hidden)
A1: =0 -> 0

Sheet Sheet65 (hidden)
A1: =0 -> 0

Sheet Sheet66 (hidden)
A1: =0 -> 0

Sheet Sheet67 (hidden)
A1: =0 -> 0

Sheet Sheet68 (hidden)
A1: =0 -> 0

Sheet Sheet69 (hidden)
A1: =0 -> 0

Sheet Sheet70 (hidden)
A1: =0 -> 0

Sheet Sheet71 (hidden)
A1: =0 -> 0

Sheet Sheet72 (hidden)
A1: =0 -> 0

Sheet Sheet73 (hidden)
A1: =0 -> 0

Sheet Sheet74 (hidden)
A1: =0 -> 0

Sheet Sheet75 (hidden)
A1: =0 -> 0

Sheet Sheet76 (hidden)
A1: =0 -> 0

Sheet Sheet77 (hidden)
A1: =0 -> 0

Sheet Sheet78 (hidden)
A1: =0 -> 0

Sheet Sheet79 (hidden)
A1: =0 -> 0

Sheet Sheet80 (hidden)
A1: =0 -> 0

Sheet Sheet81 (hidden)
A1: =0 -> 0

Sheet Sheet82 (hidden)
A1: =0 -> 0

Sheet Sheet83 (hidden)
A1: =0 -> 0

Sheet Sheet84 (hidden)
A1: =0 -> 0

Sheet Sheet85 (hidden)
A1: =0 -> 0

Sheet Sheet86 (hidden)
A1: =0 -> 0

Sheet Sheet87 (hidden)
A1: =0 -> 0

Sheet Sheet88 (hidden)
A1: =0 -> 0

Sheet Sheet89 (hidden)
A1: =0 -> 0

Sheet Sheet90 (hidden)
A1: =0 -> 0

Sheet Sheet91 (hidden)
A1: =0 -> 0

Sheet Sheet92 (hidden)
A1: =0 -> 0

Sheet Sheet93 (hidden)
A1: =0 -> 0

Sheet Sheet94 (hidden)
A1: =0 -> 0

Sheet Sheet95 (hidden)
A1: =0 -> 0

Sheet Sheet96 (hidden)
A1: =0 -> 0

Sheet Sheet97 (hidden)
A1: =0 -> 0

Sheet Sheet98 (hidden)
A1: =0 -> 0

Sheet Sheet99 (hidden)
A1: =0 -> 0

Sheet Sheet100 (hidden)
A1: =0 -> 0

Sheet Sheet101 (hidden)
A1: =0 -> 0

Sheet Sheet102 (hidden)
A1: =0 -> 0

Sheet Sheet103 (hidden)
A1: =0 -> 0

Sheet Sheet105 (hidden)
A1: =0 -> 0

Sheet Sheet106 (hidden)
A1: =0 -> 0

Sheet Sheet107 (hidden)
A1: =0 -> 0

Sheet Sheet108 (hidden)
A1: =0 -> 0

Sheet Sheet109 (hidden)
A1: =0 -> 0

Sheet Sheet110 (hidden)
A1: =0 -> 0

Sheet Sheet111 (hidden)
A1: =0 -> 0

Sheet Sheet112 (hidden)
A1: =0 -> 0

Sheet Sheet113 (hidden)
A1: =0 -> 0

Sheet Sheet114 (hidden)
A1: =0 -> 0

Sheet Sheet115 (hidden)
A1: =0 -> 0

Sheet Sheet116 (hidden)
A1: =0 -> 0

Sheet Sheet117 (hidden)
A1: =0 -> 0

Sheet Sheet118 (hidden)
A1: =0 -> 0

Sheet Sheet119 (hidden)
A1: =0 -> 0

Sheet Sheet120 (hidden)
A1: =0 -> 0

Sheet Sheet121 (hidden)
A1: =0 -> 0

Sheet Sheet122 (hidden)
A1: =0 -> 0

Sheet Sheet123 (hidden)
A1: =0 -> 0

Sheet Sheet124 (hidden)
A1: =0 -> 0

Sheet Sheet125 (hidden)
A1: =0 -> 0

Sheet Sheet126 (hidden)
A1: =0 -> 0

Sheet Sheet127 (hidden)
A1: =0 -> 0

Sheet Sheet128 (hidden)
A1: =0 -> 0

Sheet Sheet129 (hidden)
A1: =0 -> 0

Sheet Sheet130 (hidden)
A1: =0 -> 0

Sheet Sheet131 (hidden)
A1: =0 -> 0

Sheet Sheet132 (hidden)
A1: =0 -> 0

Sheet Sheet133 (hidden)
A1: =0 -> 0

Sheet Sheet134 (hidden)
A1: =0 -> 0

Sheet Sheet135 (hidden)
A1: =0 -> 0

Sheet Sheet136 (hidden)
A1: =0 -> 0

Sheet Sheet137 (hidden)
A1: =0 -> 0

Sheet Sheet138 (hidden)
A1: =0 -> 0

Sheet Sheet139 (hidden)
A1: =0 -> 0

Sheet Sheet140 (hidden)
A1: =0 -> 0

Sheet Sheet141 (hidden)
A1: =0 -> 0

Sheet Sheet142 (hidden)
A1: =0 -> 0

Sheet Sheet143 (hidden)
A1: =0 -> 0

Sheet Sheet144 (hidden)
A1: =0 -> 0

Sheet Sheet145 (hidden)
A1: =0 -> 0

Sheet Sheet146 (hidden)
A1: =0 -> 0

Sheet Sheet147 (hidden)
A1: =0 -> 0

Sheet Sheet148 (hidden)
A1: =0 -> 0

Sheet Sheet149 (hidden)
A1: =0 -> 0

Sheet Sheet150 (hidden)
A1: =0 -> 0

Sheet Sheet151 (hidden)
A1: =0 -> 0

Sheet Sheet152 (hidden)
A1: =0 -> 0

Sheet Sheet153 (hidden)
A1: =0 -> 0

Sheet Sheet154 (hidden)
A1: =0 -> 0

Sheet Sheet155 (hidden)
A1: =0 -> 0

Sheet DATA-CoP
E2: INVESTMENT COSTS | F2: Cost indicator | I2: bandwide | K2: range function | L2: Total | M2: Construction costs | N2: Civil costs | P2: Mechanical costs | R2: Electrical costs | T2: Proces autom. | V2: First filling | W2: General facilities | X2: General building equipment costs | Y2: Protection costs | Z2: Design / supervision | AA2: Design / supervision | AB2: miscellaneouse additional costs | AC2: Construction interest | AD2: INVESTMENT COSTS | AE2: Verhouding | AG2: EXPLOITATION COST | AI2: INTEREST / DEPRECIATION | AK2: CONSUMABLES | AL2: =$AK$2 -> CONSUMABLES | AO2: Chemical dosing | BG2: WASTE | BH2: WASTE | BI2: WASTE | BJ2: WASTE | BK2: =$AK$2 -> CONSUMABLES | BL2: =$AK$2 -> CONSUMABLES | BM2: =$AK$2 -> CONSUMABLES | BN2: CONSUME | BO2: CONSUME | BP2: CONSUME | BQ2: CONSUME | BR2: CONSUME | BS2: =$AK$2 -> CONSUMABLES | BT2: MAINTENANCE | BU2: Specific costs | BV2: Specific costs | BW2: Specific costs | BY2: Specific costs | BZ2: Administration costs | CA2: EXPLOITATIE | CC2: Estimated | CD2: Estimated | CE2: Estimated
C3: Cumulatief verlies | D3: Nr | E3: process name | F3: range | G3: Parameter 1 | H3: Parameter 2 | I3: under | J3: above | L3: construction costfunction | M3: Process | N3: % | O3: Price | P3: % | Q3: Price | R3: % | S3: Price | T3: I/O | U3: Price | V3: (membraam / kool etc.) | Z3: Production | AA3: Pipelines | AD3: TOTAL | AE3: Invest./bouwkosten | AG3: Process name | AI3: (REPAYMENT) | AK3: Energy | AL3: Chemicals | AN3: CHEMICALS | AO3: H2SO4 | AP3: HCl | AQ3: NaOH | AR3: Ca(OH)2 | AS3: Na2CO3 | AT3: CaCO3 | AU3: FeCl3 | AV3: FeSO4 . 7H2O | AW3: PAC (Sachtoclar) | AX3: Al2(SO4)3 .18H2O | AY3: Cl2 | AZ3: reserve | BA3: NaOCl | BB3: NaCl | BC3: O3 | BD3: H205 | BE3: PE | BF3: Citroenzuur | BG3: Waste | BH3: Chem. Waste | BI3: Pellets | BJ3: Brine to sewer | BK3: Waste | BL3: Taxes groundwater | BM3: Levies Prov. | BN3: Depreciation | BO3: Membraans | BP3: Active carbon | BQ3: Antraciet + sand | BR3: UV lights | BS3: Filling materials | BT3: Maintenance | BU3: Operation | BV3: Operation | BW3: Analysing | BY3: Protection | BZ3: Administration | CA3: TOTAAL | CC3: area | CD3: Voume | CE3: CO2 emissie
B4: 1 | W4: % | X4: % | Y4: % | Z4: % | AA4: % | AB4: % | AC4: % | AI4: € / year | AK4: € / year | AL4: € / year | AN4: Dosing | AO4: gr/m3 | AP4: gr/m3 | AQ4: gr/m3 | AR4: gr/m3 | AS4: gr/m3 | AT4: gr/m3 | AU4: gr/m3 | AV4: gr/m3 | AW4: gr/m3 | AX4: gr/m3 | AY4: gr/m3 | AZ4: gr/m3 | BA4: gr/m3 | BB4: gr/m3 | BC4: gr/m3 | BD4: gr/m3 | BE4: gr/m3 | BF4: gr/m3 | BG4: € / year | BH4: € / year | BI4: € / year | BJ4: € / year | BK4: € / year | BL4: € / year | BM4: € / year | BN4: € / year | BO4: € / year | BP4: € / year | BQ4: € / year | BR4: € / year | BS4: € / year | BT4: € / year | BU4: % van onderhoud | BV4: € / year | BW4: € / year | BY4: € / year | BZ4: € / year | CA4: € / year | CC4: m2 | CD4: m3 | CE4: kg
B5: 0 | C5: 1 | T5: 0 | W5: 5 | X5: 2 | Y5: 1 | Z5: 20 | AA5: 10 | AB5: 2 | AC5: 10
A6: =+[2]Worksheet!A6 -> 963.5027178 | B6: =+[2]Worksheet!B6 -> 0 | C6: =+[2]Worksheet!C6 -> 1 | D6: =+[2]Worksheet!D6 -> 1 | E6: Example Winputten | F6: =+[2]Worksheet!F6 -> aantal putten (1-26 #) | G6: =+[2]Worksheet!G6 -> 106.8493151 | H6: =+[2]Worksheet!H6 -> 20 | I6: =+[2]Worksheet!I6 -> 1 | J6: =+[2]Worksheet!J6 -> 26 | K6: =+[2]Worksheet!K6 -> > | L6: =+[2]Worksheet!L6 -> 9.245682311 | M6: =+[2]Worksheet!M6 -> 9245682.311 | N6: =+[2]Worksheet!N6 -> 58 | O6: =+[2]Worksheet!O6 -> 5362495.74 | P6: =+[2]Worksheet!P6 -> 14 | Q6: =+[2]Worksheet!Q6 -> 1294395.523 | R6: =+[2]Worksheet!R6 -> 28 | S6: =+[2]Worksheet!S6 -> 2588791.047 | T6: =+[2]Worksheet!T6 -> 0 | U6: =+[2]Worksheet!U6 -> 0 | V6: =+[2]Worksheet!V6 -> 0 | W6: =+[2]Worksheet!W6 -> 462284.1155 | X6: =+[2]Worksheet!X6 -> 184913.6462 | Y6: =+[2]Worksheet!Y6 -> 92456.82311 | Z6: =+[2]Worksheet!Z6 -> 1997067.379 | AA6: =+[2]Worksheet!AA6 -> 1134000 | AB6: =+[2]Worksheet!AB6 -> 196008.465 | AC6: =+[2]Worksheet!AC6 -> 1199349.909 | AD6: =+[2]Worksheet!AD6 -> 13377762.65 | AE6: =+[2]Worksheet!AE6 -> 1.44692 | AF6: =+[2]Worksheet!AF6 -> 0 | AG6: =+[2]Worksheet!AG6 -> Win of infiltratieputten | AH6: =+[2]Worksheet!AH6 -> 0 | AI6: =+[2]Worksheet!AI6 -> 988765.2511 | AJ6: =+[2]Worksheet!AJ6 -> 0 | AK6: =+[2]Worksheet!AK6 -> 187200 | AL6: =+[2]Worksheet!AL6 -> 0 | AM6: =+[2]Worksheet!AM6 -> 0 | AN6: =+[2]Worksheet!AN6 -> 0 | AO6: =+[2]Worksheet!AO6 -> 0 | AP6: =+[2]Worksheet!AP6 -> 0 | AQ6: =+[2]Worksheet!AQ6 -> 0 | AR6: =+[2]Worksheet!AR6 -> 0 | AS6: =+[2]Worksheet!AS6 -> 0 | AT6: =+[2]Worksheet!AT6 -> 0 | AU6: =+[2]Worksheet!AU6 -> 0 | AV6: =+[2]Worksheet!AV6 -> 0 | AW6: =+[2]Worksheet!AW6 -> 0 | AX6: =+[2]Worksheet!AX6 -> 0 | AY6: =+[2]Worksheet!AY6 -> 0 | AZ6: =+[2]Worksheet!AZ6 -> 0 | BA6: =+[2]Worksheet!BA6 -> 0 | BB6: =+[2]Worksheet!BB6 -> 0 | BC6: =+[2]Worksheet!BC6 -> 0 | BD6: =+[2]Worksheet!BD6 -> 0 | BE6: =+[2]Worksheet!BE6 -> 0 | BF6: =+[2]Worksheet!BF6 -> 0 | BG6: =+[2]Worksheet!BG6 -> 0 | BH6: =+[2]Worksheet!BH6 -> 0 | BI6: =+[2]Worksheet!BI6 -> 0 | BJ6: =+[2]Worksheet!BJ6 -> 0 | BK6: =+[2]Worksheet!BK6 -> 0 | BL6: =+[2]Worksheet!BL6 -> 4373200 | BM6: =+[2]Worksheet!BM6 -> 520000 | BN6: =+[2]Worksheet!BN6 -> 0 | BO6: =+[2]Worksheet!BO6 -> 0 | BP6: =+[2]Worksheet!BP6 -> 0 | BQ6: =+[2]Worksheet!BQ6 -> 0 | BR6: =+[2]Worksheet!BR6 -> 0 | BS6: =+[2]Worksheet!BS6 -> 0 | BT6: =+[2]Worksheet!BT6 -> 211726.1249 | BU6: =+[2]Worksheet!BU6 -> 0.3 | BV6: =+[2]Worksheet!BV6 -> 63517.83747 | BW6: =+[2]Worksheet!BW6 -> 0 | BX6: =+[2]Worksheet!BX6 -> 0 | BY6: =+[2]Worksheet!BY6 -> 13868.52347 | BZ6: =+[2]Worksheet!BZ6 -> 15477.27219 | CA6: =+[2]Worksheet!CA6 -> 6373755.009 | CB6: =+[2]Worksheet!CB6 -> 0 | CC6: =+[2]Worksheet!CC6 -> 0 | CD6: =+[2]Worksheet!CD6 -> 0 | CE6: =+[2]Worksheet!CE6 -> 0 | CF6: =+[2]Worksheet!CF6 -> 0 | CG6: =+[2]Worksheet!CG6 -> 0 | CH6: =+[2]Worksheet!CH6 -> 0 | CI6: =+[2]Worksheet!CI6 -> 0 | CJ6: =+[2]Worksheet!CJ6 -> 0 | CK6: =+[2]Worksheet!CK6 -> 0 | CL6: =+[2]Worksheet!CL6 -> 0 | CM6: =+[2]Worksheet!CM6 -> 0 | CN6: =+[2]Worksheet!CN6 -> 0 | CO6: =+[2]Worksheet!CO6 -> 0 | CP6: =+[2]Worksheet!CP6 -> 0 | CQ6: =+[2]Worksheet!CQ6 -> 0 | CR6: =+[2]Worksheet!CR6 -> 0 | CS6: =+[2]Worksheet!CS6 -> 0 | CT6: =+[2]Worksheet!CT6 -> 0 | CU6: =+[2]Worksheet!CU6 -> 0 | CV6: =+[2]Worksheet!CV6 -> 0 | CW6: =+[2]Worksheet!CW6 -> 0 | CX6: =+[2]Worksheet!CX6 -> 0 | CY6: =+[2]Worksheet!CY6 -> 0 | CZ6: =+[2]Worksheet!CZ6 -> 0
A7: 0 | B7: 0 | C7: 0 | D7: 0 | E7: 0 | F7: 0 | G7: 0 | H7: 0 | I7: 0 | J7: 0 | K7: 0 | L7: 0 | M7: 0 | N7: 0 | O7: 0 | P7: 0 | Q7: 0 | R7: 0 | S7: 0 | T7: 0 | U7: 0 | V7: 0 | W7: 0 | X7: 0 | Y7: 0 | Z7: 0 | AA7: 0 | AB7: 0 | AC7: 0 | AD7: 0 | AE7: 0 | AF7: 0 | AG7: 0 | AH7: 0 | AI7: 0 | AJ7: 0 | AK7: 0 | AL7: 0 | AM7: 0 | AN7: 0 | AO7: 0 | AP7: 0 | AQ7: 0 | AR7: 0 | AS7: 0 | AT7: 0 | AU7: 0 | AV7: 0 | AW7: 0 | AX7: 0 | AY7: 0 | AZ7: 0 | BA7: 0 | BB7: 0 | BC7: 0 | BD7: 0 | BE7: 0 | BF7: 0 | BG7: 0 | BH7: 0 | BI7: 0 | BJ7: 0 | BK7: 0 | BL7: 0 | BM7: 0 | BN7: 0 | BO7: 0 | BP7: 0 | BQ7: 0 | BR7: 0 | BS7: 0 | BT7: 0 | BU7: 0 | BV7: 0 | BW7: 0 | BX7: 0 | BY7: 0 | BZ7: 0 | CA7: 0 | CB7: 0 | CC7: 0 | CD7: 0 | CE7: 0 | CF7: 0 | CG7: 0 | CH7: 0 | CI7: 0 | CJ7: 0 | CK7: 0 | CL7: 0 | CM7: 0 | CN7: 0 | CO7: 0 | CP7: 0 | CQ7: 0 | CR7: 0 | CS7: 0 | CT7: 0 | CU7: 0 | CV7: 0 | CW7: 0 | CX7: 0 | CY7: 0 | CZ7: 0
A8: 0 | B8: 0 | C8: 0 | D8: 0 | E8: 0 | F8: 0 | G8: 0 | H8: 0 | I8: 0 | J8: 0 | K8: 0 | L8: 0 | M8: 0 | N8: 0 | O8: 0 | P8: 0 | Q8: 0 | R8: 0 | S8: 0 | T8: 0 | U8: 0 | V8: 0 | W8: 0 | X8: 0 | Y8: 0 | Z8: 0 | AA8: 0 | AB8: 0 | AC8: 0 | AD8: 0 | AE8: 0 | AF8: 0 | AG8: 0 | AH8: 0 | AI8: 0 | AJ8: 0 | AK8: 0 | AL8: 0 | AM8: 0 | AN8: 0 | AO8: 0 | AP8: 0 | AQ8: 0 | AR8: 0 | AS8: 0 | AT8: 0 | AU8: 0 | AV8: 0 | AW8: 0 | AX8: 0 | AY8: 0 | AZ8: 0 | BA8: 0 | BB8: 0 | BC8: 0 | BD8: 0 | BE8: 0 | BF8: 0 | BG8: 0 | BH8: 0 | BI8: 0 | BJ8: 0 | BK8: 0 | BL8: 0 | BM8: 0 | BN8: 0 | BO8: 0 | BP8: 0 | BQ8: 0 | BR8: 0 | BS8: 0 | BT8: 0 | BU8: 0 | BV8: 0 | BW8: 0 | BX8: 0 | BY8: 0 | BZ8: 0 | CA8: 0 | CB8: 0 | CC8: 0 | CD8: 0 | CE8: 0 | CF8: 0 | CG8: 0 | CH8: 0 | CI8: 0 | CJ8: 0 | CK8: 0 | CL8: 0 | CM8: 0 | CN8: 0 | CO8: 0 | CP8: 0 | CQ8: 0 | CR8: 0 | CS8: 0 | CT8: 0 | CU8: 0 | CV8: 0 | CW8: 0 | CX8: 0 | CY8: 0 | CZ8: 0
A9: 0 | B9: 0 | C9: 0 | D9: 0 | E9: 0 | F9: 0 | G9: 0 | H9: 0 | I9: 0 | J9: 0 | K9: 0 | L9: 0 | M9: 0 | N9: 0 | O9: 0 | P9: 0 | Q9: 0 | R9: 0 | S9: 0 | T9: 0 | U9: 0 | V9: 0 | W9: 0 | X9: 0 | Y9: 0 | Z9: 0 | AA9: 0 | AB9: 0 | AC9: 0 | AD9: 0 | AE9: 0 | AF9: 0 | AG9: 0 | AH9: 0 | AI9: 0 | AJ9: 0 | AK9: 0 | AL9: 0 | AM9: 0 | AN9: 0 | AO9: 0 | AP9: 0 | AQ9: 0 | AR9: 0 | AS9: 0 | AT9: 0 | AU9: 0 | AV9: 0 | AW9: 0 | AX9: 0 | AY9: 0 | AZ9: 0 | BA9: 0 | BB9: 0 | BC9: 0 | BD9: 0 | BE9: 0 | BF9: 0 | BG9: 0 | BH9: 0 | BI9: 0 | BJ9: 0 | BK9: 0 | BL9: 0 | BM9: 0 | BN9: 0 | BO9: 0 | BP9: 0 | BQ9: 0 | BR9: 0 | BS9: 0 | BT9: 0 | BU9: 0 | BV9: 0 | BW9: 0 | BX9: 0 | BY9: 0 | BZ9: 0 | CA9: 0 | CB9: 0 | CC9: 0 | CD9: 0 | CE9: 0 | CF9: 0 | CG9: 0 | CH9: 0 | CI9: 0 | CJ9: 0 | CK9: 0 | CL9: 0 | CM9: 0 | CN9: 0 | CO9: 0 | CP9: 0 | CQ9: 0 | CR9: 0 | CS9: 0 | CT9: 0 | CU9: 0 | CV9: 0 | CW9: 0 | CX9: 0 | CY9: 0 | CZ9: 0
A10: 0 | B10: 0 | C10: 0 | D10: 0 | E10: 0 | F10: 0 | G10: 0 | H10: 0 | I10: 0 | J10: 0 | K10: 0 | L10: 0 | M10: 0 | N10: 0 | O10: 0 | P10: 0 | Q10: 0 | R10: 0 | S10: 0 | T10: 0 | U10: 0 | V10: 0 | W10: 0 | X10: 0 | Y10: 0 | Z10: 0 | AA10: 0 | AB10: 0 | AC10: 0 | AD10: 0 | AE10: 0 | AF10: 0 | AG10: 0 | AH10: 0 | AI10: 0 | AJ10: 0 | AK10: 0 | AL10: 0 | AM10: 0 | AN10: 0 | AO10: 0 | AP10: 0 | AQ10: 0 | AR10: 0 | AS10: 0 | AT10: 0 | AU10: 0 | AV10: 0 | AW10: 0 | AX10: 0 | AY10: 0 | AZ10: 0 | BA10: 0 | BB10: 0 | BC10: 0 | BD10: 0 | BE10: 0 | BF10: 0 | BG10: 0 | BH10: 0 | BI10: 0 | BJ10: 0 | BK10: 0 | BL10: 0 | BM10: 0 | BN10: 0 | BO10: 0 | BP10: 0 | BQ10: 0 | BR10: 0 | BS10: 0 | BT10: 0 | BU10: 0 | BV10: 0 | BW10: 0 | BX10: 0 | BY10: 0 | BZ10: 0 | CA10: 0 | CB10: 0 | CC10: 0 | CD10: 0 | CE10: 0 | CF10: 0 | CG10: 0 | CH10: 0 | CI10: 0 | CJ10: 0 | CK10: 0 | CL10: 0 | CM10: 0 | CN10: 0 | CO10: 0 | CP10: 0 | CQ10: 0 | CR10: 0 | CS10: 0 | CT10: 0 | CU10: 0 | CV10: 0 | CW10: 0 | CX10: 0 | CY10: 0 | CZ10: 0
A11: 0 | B11: 0 | C11: 0 | D11: 0 | E11: 0 | F11: 0 | G11: 0 | H11: 0 | I11: 0 | J11: 0 | K11: 0 | L11: 0 | M11: 0 | N11: 0 | O11: 0 | P11: 0 | Q11: 0 | R11: 0 | S11: 0 | T11: 0 | U11: 0 | V11: 0 | W11: 0 | X11: 0 | Y11: 0 | Z11: 0 | AA11: 0 | AB11: 0 | AC11: 0 | AD11: 0 | AE11: 0 | AF11: 0 | AG11: 0 | AH11: 0 | AI11: 0 | AJ11: 0 | AK11: 0 | AL11: 0 | AM11: 0 | AN11: 0 | AO11: 0 | AP11: 0 | AQ11: 0 | AR11: 0 | AS11: 0 | AT11: 0 | AU11: 0 | AV11: 0 | AW11: 0 | AX11: 0 | AY11: 0 | AZ11: 0 | BA11: 0 | BB11: 0 | BC11: 0 | BD11: 0 | BE11: 0 | BF11: 0 | BG11: 0 | BH11: 0 | BI11: 0 | BJ11: 0 | BK11: 0 | BL11: 0 | BM11: 0 | BN11: 0 | BO11: 0 | BP11: 0 | BQ11: 0 | BR11: 0 | BS11: 0 | BT11: 0 | BU11: 0 | BV11: 0 | BW11: 0 | BX11: 0 | BY11: 0 | BZ11: 0 | CA11: 0 | CB11: 0 | CC11: 0 | CD11: 0 | CE11: 0 | CF11: 0 | CG11: 0 | CH11: 0 | CI11: 0 | CJ11: 0 | CK11: 0 | CL11: 0 | CM11: 0 | CN11: 0 | CO11: 0 | CP11: 0 | CQ11: 0 | CR11: 0 | CS11: 0 | CT11: 0 | CU11: 0 | CV11: 0 | CW11: 0 | CX11: 0 | CY11: 0 | CZ11: 0
A12: 0 | B12: 0 | C12: 0 | D12: 0 | E12: 0 | F12: 0 | G12: 0 | H12: 0 | I12: 0 | J12: 0 | K12: 0 | L12: 0 | M12: 0 | N12: 0 | O12: 0 | P12: 0 | Q12: 0 | R12: 0 | S12: 0 | T12: 0 | U12: 0 | V12: 0 | W12: 0 | X12: 0 | Y12: 0 | Z12: 0 | AA12: 0 | AB12: 0 | AC12: 0 | AD12: 0 | AE12: 0 | AF12: 0 | AG12: 0 | AH12: 0 | AI12: 0 | AJ12: 0 | AK12: 0 | AL12: 0 | AM12: 0 | AN12: 0 | AO12: 0 | AP12: 0 | AQ12: 0 | AR12: 0 | AS12: 0 | AT12: 0 | AU12: 0 | AV12: 0 | AW12: 0 | AX12: 0 | AY12: 0 | AZ12: 0 | BA12: 0 | BB12: 0 | BC12: 0 | BD12: 0 | BE12: 0 | BF12: 0 | BG12: 0 | BH12: 0 | BI12: 0 | BJ12: 0 | BK12: 0 | BL12: 0 | BM12: 0 | BN12: 0 | BO12: 0 | BP12: 0 | BQ12: 0 | BR12: 0 | BS12: 0 | BT12: 0 | BU12: 0 | BV12: 0 | BW12: 0 | BX12: 0 | BY12: 0 | BZ12: 0 | CA12: 0 | CB12: 0 | CC12: 0 | CD12: 0 | CE12: 0 | CF12: 0 | CG12: 0 | CH12: 0 | CI12: 0 | CJ12: 0 | CK12: 0 | CL12: 0 | CM12: 0 | CN12: 0 | CO12: 0 | CP12: 0 | CQ12: 0 | CR12: 0 | CS12: 0 | CT12: 0 | CU12: 0 | CV12: 0 | CW12: 0 | CX12: 0 | CY12: 0 | CZ12: 0
A13: 0 | B13: 0 | C13: 0 | D13: 0 | E13: 0 | F13: 0 | G13: 0 | H13: 0 | I13: 0 | J13: 0 | K13: 0 | L13: 0 | M13: 0 | N13: 0 | O13: 0 | P13: 0 | Q13: 0 | R13: 0 | S13: 0 | T13: 0 | U13: 0 | V13: 0 | W13: 0 | X13: 0 | Y13: 0 | Z13: 0 | AA13: 0 | AB13: 0 | AC13: 0 | AD13: 0 | AE13: 0 | AF13: 0 | AG13: 0 | AH13: 0 | AI13: 0 | AJ13: 0 | AK13: 0 | AL13: 0 | AM13: 0 | AN13: 0 | AO13: 0 | AP13: 0 | AQ13: 0 | AR13: 0 | AS13: 0 | AT13: 0 | AU13: 0 | AV13: 0 | AW13: 0 | AX13: 0 | AY13: 0 | AZ13: 0 | BA13: 0 | BB13: 0 | BC13: 0 | BD13: 0 | BE13: 0 | BF13: 0 | BG13: 0 | BH13: 0 | BI13: 0 | BJ13: 0 | BK13: 0 | BL13: 0 | BM13: 0 | BN13: 0 | BO13: 0 | BP13: 0 | BQ13: 0 | BR13: 0 | BS13: 0 | BT13: 0 | BU13: 0 | BV13: 0 | BW13: 0 | BX13: 0 | BY13: 0 | BZ13: 0 | CA13: 0 | CB13: 0 | CC13: 0 | CD13: 0 | CE13: 0 | CF13: 0 | CG13: 0 | CH13: 0 | CI13: 0 | CJ13: 0 | CK13: 0 | CL13: 0 | CM13: 0 | CN13: 0 | CO13: 0 | CP13: 0 | CQ13: 0 | CR13: 0 | CS13: 0 | CT13: 0 | CU13: 0 | CV13: 0 | CW13: 0 | CX13: 0 | CY13: 0 | CZ13: 0
A14: 0 | B14: 0 | C14: 0 | D14: 0 | E14: 0 | F14: 0 | G14: 0 | H14: 0 | I14: 0 | J14: 0 | K14: 0 | L14: 0 | M14: 0 | N14: 0 | O14: 0 | P14: 0 | Q14: 0 | R14: 0 | S14: 0 | T14: 0 | U14: 0 | V14: 0 | W14: 0 | X14: 0 | Y14: 0 | Z14: 0 | AA14: 0 | AB14: 0 | AC14: 0 | AD14: 0 | AE14: 0 | AF14: 0 | AG14: 0 | AH14: 0 | AI14: 0 | AJ14: 0 | AK14: 0 | AL14: 0 | AM14: 0 | AN14: 0 | AO14: 0 | AP14: 0 | AQ14: 0 | AR14: 0 | AS14: 0 | AT14: 0 | AU14: 0 | AV14: 0 | AW14: 0 | AX14: 0 | AY14: 0 | AZ14: 0 | BA14: 0 | BB14: 0 | BC14: 0 | BD14: 0 | BE14: 0 | BF14: 0 | BG14: 0 | BH14: 0 | BI14: 0 | BJ14: 0 | BK14: 0 | BL14: 0 | BM14: 0 | BN14: 0 | BO14: 0 | BP14: 0 | BQ14: 0 | BR14: 0 | BS14: 0 | BT14: 0 | BU14: 0 | BV14: 0 | BW14: 0 | BX14: 0 | BY14: 0 | BZ14: 0 | CA14: 0 | CB14: 0 | CC14: 0 | CD14: 0 | CE14: 0 | CF14: 0 | CG14: 0 | CH14: 0 | CI14: 0 | CJ14: 0 | CK14: 0 | CL14: 0 | CM14: 0 | CN14: 0 | CO14: 0 | CP14: 0 | CQ14: 0 | CR14: 0 | CS14: 0 | CT14: 0 | CU14: 0 | CV14: 0 | CW14: 0 | CX14: 0 | CY14: 0 | CZ14: 0
A15: 0 | B15: 0 | C15: 0 | D15: 0 | E15: 0 | F15: 0 | G15: 0 | H15: 0 | I15: 0 | J15: 0 | K15: 0 | L15: 0 | M15: 0 | N15: 0 | O15: 0 | P15: 0 | Q15: 0 | R15: 0 | S15: 0 | T15: 0 | U15: 0 | V15: 0 | W15: 0 | X15: 0 | Y15: 0 | Z15: 0 | AA15: 0 | AB15: 0 | AC15: 0 | AD15: 0 | AE15: 0 | AF15: 0 | AG15: 0 | AH15: 0 | AI15: 0 | AJ15: 0 | AK15: 0 | AL15: 0 | AM15: 0 | AN15: 0 | AO15: 0 | AP15: 0 | AQ15: 0 | AR15: 0 | AS15: 0 | AT15: 0 | AU15: 0 | AV15: 0 | AW15: 0 | AX15: 0 | AY15: 0 | AZ15: 0 | BA15: 0 | BB15: 0 | BC15: 0 | BD15: 0 | BE15: 0 | BF15: 0 | BG15: 0 | BH15: 0 | BI15: 0 | BJ15: 0 | BK15: 0 | BL15: 0 | BM15: 0 | BN15: 0 | BO15: 0 | BP15: 0 | BQ15: 0 | BR15: 0 | BS15: 0 | BT15: 0 | BU15: 0 | BV15: 0 | BW15: 0 | BX15: 0 | BY15: 0 | BZ15: 0 | CA15: 0 | CB15: 0 | CC15: 0 | CD15: 0 | CE15: 0 | CF15: 0 | CG15: 0 | CH15: 0 | CI15: 0 | CJ15: 0 | CK15: 0 | CL15: 0 | CM15: 0 | CN15: 0 | CO15: 0 | CP15: 0 | CQ15: 0 | CR15: 0 | CS15: 0 | CT15: 0 | CU15: 0 | CV15: 0 | CW15: 0 | CX15: 0 | CY15: 0 | CZ15: 0
A16: 0 | B16: 0 | C16: 0 | D16: 0 | E16: 0 | F16: 0 | G16: 0 | H16: 0 | I16: 0 | J16: 0 | K16: 0 | L16: 0 | M16: 0 | N16: 0 | O16: 0 | P16: 0 | Q16: 0 | R16: 0 | S16: 0 | T16: 0 | U16: 0 | V16: 0 | W16: 0 | X16: 0 | Y16: 0 | Z16: 0 | AA16: 0 | AB16: 0 | AC16: 0 | AD16: 0 | AE16: 0 | AF16: 0 | AG16: 0 | AH16: 0 | AI16: 0 | AJ16: 0 | AK16: 0 | AL16: 0 | AM16: 0 | AN16: 0 | AO16: 0 | AP16: 0 | AQ16: 0 | AR16: 0 | AS16: 0 | AT16: 0 | AU16: 0 | AV16: 0 | AW16: 0 | AX16: 0 | AY16: 0 | AZ16: 0 | BA16: 0 | BB16: 0 | BC16: 0 | BD16: 0 | BE16: 0 | BF16: 0 | BG16: 0 | BH16: 0 | BI16: 0 | BJ16: 0 | BK16: 0 | BL16: 0 | BM16: 0 | BN16: 0 | BO16: 0 | BP16: 0 | BQ16: 0 | BR16: 0 | BS16: 0 | BT16: 0 | BU16: 0 | BV16: 0 | BW16: 0 | BX16: 0 | BY16: 0 | BZ16: 0 | CA16: 0 | CB16: 0 | CC16: 0 | CD16: 0 | CE16: 0 | CF16: 0 | CG16: 0 | CH16: 0 | CI16: 0 | CJ16: 0 | CK16: 0 | CL16: 0 | CM16: 0 | CN16: 0 | CO16: 0 | CP16: 0 | CQ16: 0 | CR16: 0 | CS16: 0 | CT16: 0 | CU16: 0 | CV16: 0 | CW16: 0 | CX16: 0 | CY16: 0 | CZ16: 0
A17: 0 | B17: 0 | C17: 0 | D17: 0 | E17: 0 | F17: 0 | G17: 0 | H17: 0 | I17: 0 | J17: 0 | K17: 0 | L17: 0 | M17: 0 | N17: 0 | O17: 0 | P17: 0 | Q17: 0 | R17: 0 | S17: 0 | T17: 0 | U17: 0 | V17: 0 | W17: 0 | X17: 0 | Y17: 0 | Z17: 0 | AA17: 0 | AB17: 0 | AC17: 0 | AD17: 0 | AE17: 0 | AF17: 0 | AG17: 0 | AH17: 0 | AI17: 0 | AJ17: 0 | AK17: 0 | AL17: 0 | AM17: 0 | AN17: 0 | AO17: 0 | AP17: 0 | AQ17: 0 | AR17: 0 | AS17: 0 | AT17: 0 | AU17: 0 | AV17: 0 | AW17: 0 | AX17: 0 | AY17: 0 | AZ17: 0 | BA17: 0 | BB17: 0 | BC17: 0 | BD17: 0 | BE17: 0 | BF17: 0 | BG17: 0 | BH17: 0 | BI17: 0 | BJ17: 0 | BK17: 0 | BL17: 0 | BM17: 0 | BN17: 0 | BO17: 0 | BP17: 0 | BQ17: 0 | BR17: 0 | BS17: 0 | BT17: 0 | BU17: 0 | BV17: 0 | BW17: 0 | BX17: 0 | BY17: 0 | BZ17: 0 | CA17: 0 | CB17: 0 | CC17: 0 | CD17: 0 | CE17: 0 | CF17: 0 | CG17: 0 | CH17: 0 | CI17: 0 | CJ17: 0 | CK17: 0 | CL17: 0 | CM17: 0 | CN17: 0 | CO17: 0 | CP17: 0 | CQ17: 0 | CR17: 0 | CS17: 0 | CT17: 0 | CU17: 0 | CV17: 0 | CW17: 0 | CX17: 0 | CY17: 0 | CZ17: 0
A18: 0 | B18: 0 | C18: 0 | D18: 0 | E18: 0 | F18: 0 | G18: 0 | H18: 0 | I18: 0 | J18: 0 | K18: 0 | L18: 0 | M18: 0 | N18: 0 | O18: 0 | P18: 0 | Q18: 0 | R18: 0 | S18: 0 | T18: 0 | U18: 0 | V18: 0 | W18: 0 | X18: 0 | Y18: 0 | Z18: 0 | AA18: 0 | AB18: 0 | AC18: 0 | AD18: 0 | AE18: 0 | AF18: 0 | AG18: 0 | AH18: 0 | AI18: 0 | AJ18: 0 | AK18: 0 | AL18: 0 | AM18: 0 | AN18: 0 | AO18: 0 | AP18: 0 | AQ18: 0 | AR18: 0 | AS18: 0 | AT18: 0 | AU18: 0 | AV18: 0 | AW18: 0 | AX18: 0 | AY18: 0 | AZ18: 0 | BA18: 0 | BB18: 0 | BC18: 0 | BD18: 0 | BE18: 0 | BF18: 0 | BG18: 0 | BH18: 0 | BI18: 0 | BJ18: 0 | BK18: 0 | BL18: 0 | BM18: 0 | BN18: 0 | BO18: 0 | BP18: 0 | BQ18: 0 | BR18: 0 | BS18: 0 | BT18: 0 | BU18: 0 | BV18: 0 | BW18: 0 | BX18: 0 | BY18: 0 | BZ18: 0 | CA18: 0 | CB18: 0 | CC18: 0 | CD18: 0 | CE18: 0 | CF18: 0 | CG18: 0 | CH18: 0 | CI18: 0 | CJ18: 0 | CK18: 0 | CL18: 0 | CM18: 0 | CN18: 0 | CO18: 0 | CP18: 0 | CQ18: 0 | CR18: 0 | CS18: 0 | CT18: 0 | CU18: 0 | CV18: 0 | CW18: 0 | CX18: 0 | CY18: 0 | CZ18: 0
A19: =+[2]Worksheet!A19 -> 0 | B19: =+[2]Worksheet!B19 -> 0 | C19: =+[2]Worksheet!C19 -> 0 | D19: =+[2]Worksheet!D19 -> 0 | E19: =+[2]Worksheet!E19 -> 0 | F19: =+[2]Worksheet!F19 -> 0 | G19: =+[2]Worksheet!G19 -> 0 | H19: =+[2]Worksheet!H19 -> 0 | I19: =+[2]Worksheet!I19 -> 0 | J19: =+[2]Worksheet!J19 -> 0 | K19: =+[2]Worksheet!K19 -> 0 | L19: =+[2]Worksheet!L19 -> 0 | M19: =+[2]Worksheet!M19 -> 0 | N19: =+[2]Worksheet!N19 -> 0 | O19: =+[2]Worksheet!O19 -> 0 | P19: =+[2]Worksheet!P19 -> 0 | Q19: =+[2]Worksheet!Q19 -> 0 | R19: =+[2]Worksheet!R19 -> 0 | S19: =+[2]Worksheet!S19 -> 0 | T19: =+[2]Worksheet!T19 -> 0 | U19: =+[2]Worksheet!U19 -> 0 | V19: =+[2]Worksheet!V19 -> 0 | W19: =+[2]Worksheet!W19 -> 0 | X19: =+[2]Worksheet!X19 -> 0 | Y19: =+[2]Worksheet!Y19 -> 0 | Z19: =+[2]Worksheet!Z19 -> 0 | AA19: =+[2]Worksheet!AA19 -> 0 | AB19: =+[2]Worksheet!AB19 -> 0 | AC19: =+[2]Worksheet!AC19 -> 0 | AD19: =+[2]Worksheet!AD19 -> 0 | AE19: =+[2]Worksheet!AE19 -> 0 | AF19: =+[2]Worksheet!AF19 -> 0 | AG19: =+[2]Worksheet!AG19 -> 0 | AH19: =+[2]Worksheet!AH19 -> 0 | AI19: =+[2]Worksheet!AI19 -> 0 | AJ19: =+[2]Worksheet!AJ19 -> 0 | AK19: =+[2]Worksheet!AK19 -> 0 | AL19: =+[2]Worksheet!AL19 -> 0 | AM19: =+[2]Worksheet!AM19 -> 0 | AN19: =+[2]Worksheet!AN19 -> 0 | AO19: =+[2]Worksheet!AO19 -> 0 | AP19: =+[2]Worksheet!AP19 -> 0 | AQ19: =+[2]Worksheet!AQ19 -> 0 | AR19: =+[2]Worksheet!AR19 -> 0 | AS19: =+[2]Worksheet!AS19 -> 0 | AT19: =+[2]Worksheet!AT19 -> 0 | AU19: =+[2]Worksheet!AU19 -> 0 | AV19: =+[2]Worksheet!AV19 -> 0 | AW19: =+[2]Worksheet!AW19 -> 0 | AX19: =+[2]Worksheet!AX19 -> 0 | AY19: =+[2]Worksheet!AY19 -> 0 | AZ19: =+[2]Worksheet!AZ19 -> 0 | BA19: =+[2]Worksheet!BA19 -> 0 | BB19: =+[2]Worksheet!BB19 -> 0 | BC19: =+[2]Worksheet!BC19 -> 0 | BD19: =+[2]Worksheet!BD19 -> 0 | BE19: =+[2]Worksheet!BE19 -> 0 | BF19: =+[2]Worksheet!BF19 -> 0 | BG19: =+[2]Worksheet!BG19 -> 0 | BH19: =+[2]Worksheet!BH19 -> 0 | BI19: =+[2]Worksheet!BI19 -> 0 | BJ19: =+[2]Worksheet!BJ19 -> 0 | BK19: =+[2]Worksheet!BK19 -> 0 | BL19: =+[2]Worksheet!BL19 -> 0 | BM19: =+[2]Worksheet!BM19 -> 0 | BN19: =+[2]Worksheet!BN19 -> 0 | BO19: =+[2]Worksheet!BO19 -> 0 | BP19: =+[2]Worksheet!BP19 -> 0 | BQ19: =+[2]Worksheet!BQ19 -> 0 | BR19: =+[2]Worksheet!BR19 -> 0 | BS19: =+[2]Worksheet!BS19 -> 0 | BT19: =+[2]Worksheet!BT19 -> 0 | BU19: =+[2]Worksheet!BU19 -> 0 | BV19: =+[2]Worksheet!BV19 -> 0 | BW19: =+[2]Worksheet!BW19 -> 0 | BX19: =+[2]Worksheet!BX19 -> 0 | BY19: =+[2]Worksheet!BY19 -> 0 | BZ19: =+[2]Worksheet!BZ19 -> 0 | CA19: =+[2]Worksheet!CA19 -> 0 | CB19: =+[2]Worksheet!CB19 -> 0 | CC19: =+[2]Worksheet!CC19 -> 0 | CD19: =+[2]Worksheet!CD19 -> 0 | CE19: =+[2]Worksheet!CE19 -> 0 | CF19: =+[2]Worksheet!CF19 -> 0 | CG19: =+[2]Worksheet!CG19 -> 0 | CH19: =+[2]Worksheet!CH19 -> 0 | CI19: =+[2]Worksheet!CI19 -> 0 | CJ19: =+[2]Worksheet!CJ19 -> 0 | CK19: =+[2]Worksheet!CK19 -> 0 | CL19: =+[2]Worksheet!CL19 -> 0 | CM19: =+[2]Worksheet!CM19 -> 0 | CN19: =+[2]Worksheet!CN19 -> 0 | CO19: =+[2]Worksheet!CO19 -> 0 | CP19: =+[2]Worksheet!CP19 -> 0 | CQ19: =+[2]Worksheet!CQ19 -> 0 | CR19: =+[2]Worksheet!CR19 -> 0 | CS19: =+[2]Worksheet!CS19 -> 0 | CT19: =+[2]Worksheet!CT19 -> 0 | CU19: =+[2]Worksheet!CU19 -> 0 | CV19: =+[2]Worksheet!CV19 -> 0 | CW19: =+[2]Worksheet!CW19 -> 0 | CX19: =+[2]Worksheet!CX19 -> 0 | CY19: =+[2]Worksheet!CY19 -> 0 | CZ19: =+[2]Worksheet!CZ19 -> 0
A20: =+[2]Worksheet!A20 -> 0 | B20: =+[2]Worksheet!B20 -> 0 | C20: =+[2]Worksheet!C20 -> 0 | D20: =+[2]Worksheet!D20 -> 0 | E20: =+[2]Worksheet!E20 -> 0 | F20: =+[2]Worksheet!F20 -> 0 | G20: =+[2]Worksheet!G20 -> 0 | H20: =+[2]Worksheet!H20 -> 0 | I20: =+[2]Worksheet!I20 -> 0 | J20: =+[2]Worksheet!J20 -> 0 | K20: =+[2]Worksheet!K20 -> 0 | L20: =+[2]Worksheet!L20 -> 0 | M20: =+[2]Worksheet!M20 -> 0 | N20: =+[2]Worksheet!N20 -> 0 | O20: =+[2]Worksheet!O20 -> 0 | P20: =+[2]Worksheet!P20 -> 0 | Q20: =+[2]Worksheet!Q20 -> 0 | R20: =+[2]Worksheet!R20 -> 0 | S20: =+[2]Worksheet!S20 -> 0 | T20: =+[2]Worksheet!T20 -> 0 | U20: =+[2]Worksheet!U20 -> 0 | V20: =+[2]Worksheet!V20 -> 0 | W20: =+[2]Worksheet!W20 -> 0 | X20: =+[2]Worksheet!X20 -> 0 | Y20: =+[2]Worksheet!Y20 -> 0 | Z20: =+[2]Worksheet!Z20 -> 0 | AA20: =+[2]Worksheet!AA20 -> 0 | AB20: =+[2]Worksheet!AB20 -> 0 | AC20: =+[2]Worksheet!AC20 -> 0 | AD20: =+[2]Worksheet!AD20 -> 0 | AE20: =+[2]Worksheet!AE20 -> 0 | AF20: =+[2]Worksheet!AF20 -> 0 | AG20: =+[2]Worksheet!AG20 -> 0 | AH20: =+[2]Worksheet!AH20 -> 0 | AI20: =+[2]Worksheet!AI20 -> 0 | AJ20: =+[2]Worksheet!AJ20 -> 0 | AK20: =+[2]Worksheet!AK20 -> 0 | AL20: =+[2]Worksheet!AL20 -> 0 | AM20: =+[2]Worksheet!AM20 -> 0 | AN20: =+[2]Worksheet!AN20 -> 0 | AO20: =+[2]Worksheet!AO20 -> 0 | AP20: =+[2]Worksheet!AP20 -> 0 | AQ20: =+[2]Worksheet!AQ20 -> 0 | AR20: =+[2]Worksheet!AR20 -> 0 | AS20: =+[2]Worksheet!AS20 -> 0 | AT20: =+[2]Worksheet!AT20 -> 0 | AU20: =+[2]Worksheet!AU20 -> 0 | AV20: =+[2]Worksheet!AV20 -> 0 | AW20: =+[2]Worksheet!AW20 -> 0 | AX20: =+[2]Worksheet!AX20 -> 0 | AY20: =+[2]Worksheet!AY20 -> 0 | AZ20: =+[2]Worksheet!AZ20 -> 0 | BA20: =+[2]Worksheet!BA20 -> 0 | BB20: =+[2]Worksheet!BB20 -> 0 | BC20: =+[2]Worksheet!BC20 -> 0 | BD20: =+[2]Worksheet!BD20 -> 0 | BE20: =+[2]Worksheet!BE20 -> 0 | BF20: =+[2]Worksheet!BF20 -> 0 | BG20: =+[2]Worksheet!BG20 -> 0 | BH20: =+[2]Worksheet!BH20 -> 0 | BI20: =+[2]Worksheet!BI20 -> 0 | BJ20: =+[2]Worksheet!BJ20 -> 0 | BK20: =+[2]Worksheet!BK20 -> 0 | BL20: =+[2]Worksheet!BL20 -> 0 | BM20: =+[2]Worksheet!BM20 -> 0 | BN20: =+[2]Worksheet!BN20 -> 0 | BO20: =+[2]Worksheet!BO20 -> 0 | BP20: =+[2]Worksheet!BP20 -> 0 | BQ20: =+[2]Worksheet!BQ20 -> 0 | BR20: =+[2]Worksheet!BR20 -> 0 | BS20: =+[2]Worksheet!BS20 -> 0 | BT20: =+[2]Worksheet!BT20 -> 0 | BU20: =+[2]Worksheet!BU20 -> 0 | BV20: =+[2]Worksheet!BV20 -> 0 | BW20: =+[2]Worksheet!BW20 -> 0 | BX20: =+[2]Worksheet!BX20 -> 0 | BY20: =+[2]Worksheet!BY20 -> 0 | BZ20: =+[2]Worksheet!BZ20 -> 0 | CA20: =+[2]Worksheet!CA20 -> 0 | CB20: =+[2]Worksheet!CB20 -> 0 | CC20: =+[2]Worksheet!CC20 -> 0 | CD20: =+[2]Worksheet!CD20 -> 0 | CE20: =+[2]Worksheet!CE20 -> 0 | CF20: =+[2]Worksheet!CF20 -> 0 | CG20: =+[2]Worksheet!CG20 -> 0 | CH20: =+[2]Worksheet!CH20 -> 0 | CI20: =+[2]Worksheet!CI20 -> 0 | CJ20: =+[2]Worksheet!CJ20 -> 0 | CK20: =+[2]Worksheet!CK20 -> 0 | CL20: =+[2]Worksheet!CL20 -> 0 | CM20: =+[2]Worksheet!CM20 -> 0 | CN20: =+[2]Worksheet!CN20 -> 0 | CO20: =+[2]Worksheet!CO20 -> 0 | CP20: =+[2]Worksheet!CP20 -> 0 | CQ20: =+[2]Worksheet!CQ20 -> 0 | CR20: =+[2]Worksheet!CR20 -> 0 | CS20: =+[2]Worksheet!CS20 -> 0 | CT20: =+[2]Worksheet!CT20 -> 0 | CU20: =+[2]Worksheet!CU20 -> 0 | CV20: =+[2]Worksheet!CV20 -> 0 | CW20: =+[2]Worksheet!CW20 -> 0 | CX20: =+[2]Worksheet!CX20 -> 0 | CY20: =+[2]Worksheet!CY20 -> 0 | CZ20: =+[2]Worksheet!CZ20 -> 0
AD22: =SUM(AD6:AD21) -> 13377762.65 | AE22: Crosschecking | CA22: =SUM(CA6:CA21) -> 6373755.009 | CB22: Crosschecking
M23: =SUM(M6:M22) -> 9245682.311 | O23: =SUM(O6:O22) -> 5362495.74 | Q23: =SUM(Q6:Q22) -> 1294395.523 | S23: =SUM(S6:S22) -> 2588791.047 | U23: =SUM(U6:U22) -> 0 | V23: 0 | W23: 462284.1155 | X23: 184913.6462 | Y23: 92456.82311 | Z23: 1997067.379 | AA23: 1134000 | AB23: 196008.465 | AC23: 1199349.909 | AD23: =SUM(O23:AC23) -> 14511762.65 | AI23: =SUM(AI6:AI22) -> 988765.2511 | AK23: =SUM(AK6:AK22) -> 187200 | AL23: =SUM(AL6:AL22) -> 0 | BK23: =SUM(BK6:BK22) -> 0 | BL23: =SUM(BL6:BL22) -> 4373200 | BM23: =SUM(BM6:BM22) -> 520000 | BS23: =SUM(BS6:BS22) -> 0 | BT23: =SUM(BT6:BT22) -> 211726.1249 | BV23: =SUM(BV6:BV22) -> 63517.83747 | BW23: =SUM(BW6:BW22) -> 0 | BY23: =SUM(BY6:BY22) -> 13868.52347 | BZ23: =SUM(BZ6:BZ22) -> 15477.27219 | CA23: =SUM(AG23:BZ23) -> 6373755.009
A100: dhvmb

Sheet Principles
B1: ESTIMATION
B2: Principles CAPEX
A3: 1
A4: 2
A5: 3
A6: 4
A7: 5
A8: 6
A9: 7
A10: 8
A11: 9
A12: 10
B14: Principles OPEX
A15: 11
A16: 12
A17: 13
A18: 14
A19: 15
A20: 16
A21: 17
A22: 18
A23: 19
A24: 20

Sheet CAPEX
A2: Client | B2: Water treatment company
A3: Projectnumber | B3: P1234
A4: Projectname | B4: _
A5: Component | B5: Cost estimation
A6: Accuracy budget estimate | B6: Treatment proces selection +/- 30%
A7: By | B7: M.J.W.M. Bakker DHV Water
A8: Date | B8: 2009-02-06
E10: 22 | F10: 23 | G10: 24 | H10: 30 | I10: 31 | J10: 32 | L10: 1 | M10: 2 | N10: 3 | O10: 4 | P10: 5 | Q10: 6 | R10: 7 | S10: 8 | T10: 9 | U10: 10 | V10: 11 | W10: 12
A11: ='DATA-CoP'!AG2&" /year" -> EXPLOITATION COST /year | B11: ='DATA-CoP'!F2 -> Cost indicator | K11: ='DATA-CoP'!M2 -> Construction costs | L11: ='DATA-CoP'!N2 -> Civil costs | M11: ='DATA-CoP'!P2 -> Mechanical costs | N11: ='DATA-CoP'!R2 -> Electrical costs | O11: ='DATA-CoP'!T2 -> Proces autom. | P11: ='DATA-CoP'!V2 -> First filling | Q11: ='DATA-CoP'!W2 -> General facilities | R11: ='DATA-CoP'!X2 -> General building equipment costs | S11: ='DATA-CoP'!Y2 -> Protection costs | T11: ='DATA-CoP'!Z2 -> Design / supervision | U11: ='DATA-CoP'!AA2 -> Design / supervision | V11: ='DATA-CoP'!AB2 -> miscellaneouse additional costs | W11: ='DATA-CoP'!AC2 -> Construction interest | X11: ='DATA-CoP'!AD2 -> INVESTMENT COSTS
A12: ='DATA-CoP'!E3 -> process name | B12: ='DATA-CoP'!F3 -> range | C12: ='DATA-CoP'!G3 -> Parameter 1 | D12: ='DATA-CoP'!K2 -> range function | E12: ='DATA-CoP'!BG3 -> Waste | F12: ='DATA-CoP'!BH3 -> Chem. Waste | G12: ='DATA-CoP'!BI3 -> Pellets | H12: ='DATA-CoP'!BO3 -> Membraans | I12: ='DATA-CoP'!BP3 -> Active carbon | J12: ='DATA-CoP'!BQ3 -> Antraciet + sand | K12: CT / WT / ET | Q12: ='DATA-CoP'!W5&"%" -> 5% | R12: ='DATA-CoP'!X5&"%" -> 2% | S12: ='DATA-CoP'!Y5&"%" -> 1% | T12: ='DATA-CoP'!Z5&"%" -> 20% | U12: ='DATA-CoP'!AA5&"%" -> 10% | V12: ='DATA-CoP'!AB5&"%" -> 2% | W12: ='DATA-CoP'!AC5&"%" -> 10% | X12: ='DATA-CoP'!AD3 -> TOTAL
E13: ='DATA-CoP'!BG4 -> € / year | F13: ='DATA-CoP'!BH4 -> € / year | G13: ='DATA-CoP'!BI4 -> € / year | H13: ='DATA-CoP'!BO4 -> € / year | I13: ='DATA-CoP'!BP4 -> € / year | J13: ='DATA-CoP'!BQ4 -> € / year | T13: ='DATA-CoP'!Z3 -> Production | U13: ='DATA-CoP'!AA3 -> Pipelines | Y13: Bandwidth
A14: TOTAL COSTS | K14: =SUM(K16:K31) -> 9245682.311 | L14: 5362495.74 | M14: 1294395.523 | N14: 2588791.047 | O14: 0 | P14: 0 | Q14: 462284.1155 | R14: 184913.6462 | S14: 92456.82311 | T14: 1997067.379 | U14: 1134000 | V14: 196008.465 | W14: 1199349.909 | X14: =ROUND(SUM(X16:X31),-3) -> 13378000 | Y14: +/- 30%
A16: ='DATA-CoP'!E6 -> Example Winputten | B16: ='DATA-CoP'!F6 -> aantal putten (1-26 #) | C16: ='DATA-CoP'!G6 -> 106.8493151 | D16: ='DATA-CoP'!K6 -> > | E16: ='DATA-CoP'!BG6 -> 0 | F16: ='DATA-CoP'!BH6 -> 0 | G16: ='DATA-CoP'!BI6 -> 0 | H16: ='DATA-CoP'!BO6 -> 0 | I16: ='DATA-CoP'!BP6 -> 0 | J16: ='DATA-CoP'!BQ6 -> 0 | K16: ='DATA-CoP'!M6 -> 9245682.311 | L16: ='DATA-CoP'!O6 -> 5362495.74 | M16: ='DATA-CoP'!Q6 -> 1294395.523 | N16: ='DATA-CoP'!S6 -> 2588791.047 | O16: ='DATA-CoP'!U6 -> 0 | P16: ='DATA-CoP'!V6 -> 0 | Q16: ='DATA-CoP'!W6 -> 462284.1155 | R16: ='DATA-CoP'!X6 -> 184913.6462 | S16: ='DATA-CoP'!Y6 -> 92456.82311 | T16: ='DATA-CoP'!Z6 -> 1997067.379 | U16: ='DATA-CoP'!AA6 -> 1134000 | V16: ='DATA-CoP'!AB6 -> 196008.465 | W16: ='DATA-CoP'!AC6 -> 1199349.909 | X16: ='DATA-CoP'!AD6 -> 13377762.65
A17: ='DATA-CoP'!E7 -> 0 | B17: ='DATA-CoP'!F7 -> 0 | C17: ='DATA-CoP'!G7 -> 0 | D17: ='DATA-CoP'!K7 -> 0 | E17: ='DATA-CoP'!BG7 -> 0 | F17: ='DATA-CoP'!BH7 -> 0 | G17: ='DATA-CoP'!BI7 -> 0 | H17: ='DATA-CoP'!BO7 -> 0 | I17: ='DATA-CoP'!BP7 -> 0 | J17: ='DATA-CoP'!BQ7 -> 0 | K17: ='DATA-CoP'!M7 -> 0 | L17: ='DATA-CoP'!O7 -> 0 | M17: ='DATA-CoP'!Q7 -> 0 | N17: ='DATA-CoP'!S7 -> 0 | O17: ='DATA-CoP'!U7 -> 0 | P17: ='DATA-CoP'!V7 -> 0 | Q17: ='DATA-CoP'!W7 -> 0 | R17: ='DATA-CoP'!X7 -> 0 | S17: ='DATA-CoP'!Y7 -> 0 | T17: ='DATA-CoP'!Z7 -> 0 | U17: ='DATA-CoP'!AA7 -> 0 | V17: ='DATA-CoP'!AB7 -> 0 | W17: ='DATA-CoP'!AC7 -> 0 | X17: ='DATA-CoP'!AD7 -> 0
A18: ='DATA-CoP'!E8 -> 0 | B18: ='DATA-CoP'!F8 -> 0 | C18: ='DATA-CoP'!G8 -> 0 | D18: ='DATA-CoP'!K8 -> 0 | E18: ='DATA-CoP'!BG8 -> 0 | F18: ='DATA-CoP'!BH8 -> 0 | G18: ='DATA-CoP'!BI8 -> 0 | H18: ='DATA-CoP'!BO8 -> 0 | I18: ='DATA-CoP'!BP8 -> 0 | J18: ='DATA-CoP'!BQ8 -> 0 | K18: ='DATA-CoP'!M8 -> 0 | L18: ='DATA-CoP'!O8 -> 0 | M18: ='DATA-CoP'!Q8 -> 0 | N18: ='DATA-CoP'!S8 -> 0 | O18: ='DATA-CoP'!U8 -> 0 | P18: ='DATA-CoP'!V8 -> 0 | Q18: ='DATA-CoP'!W8 -> 0 | R18: ='DATA-CoP'!X8 -> 0 | S18: ='DATA-CoP'!Y8 -> 0 | T18: ='DATA-CoP'!Z8 -> 0 | U18: ='DATA-CoP'!AA8 -> 0 | V18: ='DATA-CoP'!AB8 -> 0 | W18: ='DATA-CoP'!AC8 -> 0 | X18: ='DATA-CoP'!AD8 -> 0
A19: ='DATA-CoP'!E9 -> 0 | B19: ='DATA-CoP'!F9 -> 0 | C19: ='DATA-CoP'!G9 -> 0 | D19: ='DATA-CoP'!K9 -> 0 | E19: ='DATA-CoP'!BG9 -> 0 | F19: ='DATA-CoP'!BH9 -> 0 | G19: ='DATA-CoP'!BI9 -> 0 | H19: ='DATA-CoP'!BO9 -> 0 | I19: ='DATA-CoP'!BP9 -> 0 | J19: ='DATA-CoP'!BQ9 -> 0 | K19: ='DATA-CoP'!M9 -> 0 | L19: ='DATA-CoP'!O9 -> 0 | M19: ='DATA-CoP'!Q9 -> 0 | N19: ='DATA-CoP'!S9 -> 0 | O19: ='DATA-CoP'!U9 -> 0 | P19: ='DATA-CoP'!V9 -> 0 | Q19: ='DATA-CoP'!W9 -> 0 | R19: ='DATA-CoP'!X9 -> 0 | S19: ='DATA-CoP'!Y9 -> 0 | T19: ='DATA-CoP'!Z9 -> 0 | U19: ='DATA-CoP'!AA9 -> 0 | V19: ='DATA-CoP'!AB9 -> 0 | W19: ='DATA-CoP'!AC9 -> 0 | X19: ='DATA-CoP'!AD9 -> 0
A20: ='DATA-CoP'!E10 -> 0 | B20: ='DATA-CoP'!F10 -> 0 | C20: ='DATA-CoP'!G10 -> 0 | D20: ='DATA-CoP'!K10 -> 0 | E20: ='DATA-CoP'!BG10 -> 0 | F20: ='DATA-CoP'!BH10 -> 0 | G20: ='DATA-CoP'!BI10 -> 0 | H20: ='DATA-CoP'!BO10 -> 0 | I20: ='DATA-CoP'!BP10 -> 0 | J20: ='DATA-CoP'!BQ10 -> 0 | K20: ='DATA-CoP'!M10 -> 0 | L20: ='DATA-CoP'!O10 -> 0 | M20: ='DATA-CoP'!Q10 -> 0 | N20: ='DATA-CoP'!S10 -> 0 | O20: ='DATA-CoP'!U10 -> 0 | P20: ='DATA-CoP'!V10 -> 0 | Q20: ='DATA-CoP'!W10 -> 0 | R20: ='DATA-CoP'!X10 -> 0 | S20: ='DATA-CoP'!Y10 -> 0 | T20: ='DATA-CoP'!Z10 -> 0 | U20: ='DATA-CoP'!AA10 -> 0 | V20: ='DATA-CoP'!AB10 -> 0 | W20: ='DATA-CoP'!AC10 -> 0 | X20: ='DATA-CoP'!AD10 -> 0
A21: ='DATA-CoP'!E11 -> 0 | B21: ='DATA-CoP'!F11 -> 0 | C21: ='DATA-CoP'!G11 -> 0 | D21: ='DATA-CoP'!K11 -> 0 | E21: ='DATA-CoP'!BG11 -> 0 | F21: ='DATA-CoP'!BH11 -> 0 | G21: ='DATA-CoP'!BI11 -> 0 | H21: ='DATA-CoP'!BO11 -> 0 | I21: ='DATA-CoP'!BP11 -> 0 | J21: ='DATA-CoP'!BQ11 -> 0 | K21: ='DATA-CoP'!M11 -> 0 | L21: ='DATA-CoP'!O11 -> 0 | M21: ='DATA-CoP'!Q11 -> 0 | N21: ='DATA-CoP'!S11 -> 0 | O21: ='DATA-CoP'!U11 -> 0 | P21: ='DATA-CoP'!V11 -> 0 | Q21: ='DATA-CoP'!W11 -> 0 | R21: ='DATA-CoP'!X11 -> 0 | S21: ='DATA-CoP'!Y11 -> 0 | T21: ='DATA-CoP'!Z11 -> 0 | U21: ='DATA-CoP'!AA11 -> 0 | V21: ='DATA-CoP'!AB11 -> 0 | W21: ='DATA-CoP'!AC11 -> 0 | X21: ='DATA-CoP'!AD11 -> 0
A22: ='DATA-CoP'!E12 -> 0 | B22: ='DATA-CoP'!F12 -> 0 | C22: ='DATA-CoP'!G12 -> 0 | D22: ='DATA-CoP'!K12 -> 0 | E22: ='DATA-CoP'!BG12 -> 0 | F22: ='DATA-CoP'!BH12 -> 0 | G22: ='DATA-CoP'!BI12 -> 0 | H22: ='DATA-CoP'!BO12 -> 0 | I22: ='DATA-CoP'!BP12 -> 0 | J22: ='DATA-CoP'!BQ12 -> 0 | K22: ='DATA-CoP'!M12 -> 0 | L22: ='DATA-CoP'!O12 -> 0 | M22: ='DATA-CoP'!Q12 -> 0 | N22: ='DATA-CoP'!S12 -> 0 | O22: ='DATA-CoP'!U12 -> 0 | P22: ='DATA-CoP'!V12 -> 0 | Q22: ='DATA-CoP'!W12 -> 0 | R22: ='DATA-CoP'!X12 -> 0 | S22: ='DATA-CoP'!Y12 -> 0 | T22: ='DATA-CoP'!Z12 -> 0 | U22: ='DATA-CoP'!AA12 -> 0 | V22: ='DATA-CoP'!AB12 -> 0 | W22: ='DATA-CoP'!AC12 -> 0 | X22: ='DATA-CoP'!AD12 -> 0
A23: ='DATA-CoP'!E13 -> 0 | B23: ='DATA-CoP'!F13 -> 0 | C23: ='DATA-CoP'!G13 -> 0 | D23: ='DATA-CoP'!K13 -> 0 | E23: ='DATA-CoP'!BG13 -> 0 | F23: ='DATA-CoP'!BH13 -> 0 | G23: ='DATA-CoP'!BI13 -> 0 | H23: ='DATA-CoP'!BO13 -> 0 | I23: ='DATA-CoP'!BP13 -> 0 | J23: ='DATA-CoP'!BQ13 -> 0 | K23: ='DATA-CoP'!M13 -> 0 | L23: ='DATA-CoP'!O13 -> 0 | M23: ='DATA-CoP'!Q13 -> 0 | N23: ='DATA-CoP'!S13 -> 0 | O23: ='DATA-CoP'!U13 -> 0 | P23: ='DATA-CoP'!V13 -> 0 | Q23: ='DATA-CoP'!W13 -> 0 | R23: ='DATA-CoP'!X13 -> 0 | S23: ='DATA-CoP'!Y13 -> 0 | T23: ='DATA-CoP'!Z13 -> 0 | U23: ='DATA-CoP'!AA13 -> 0 | V23: ='DATA-CoP'!AB13 -> 0 | W23: ='DATA-CoP'!AC13 -> 0 | X23: ='DATA-CoP'!AD13 -> 0
A24: ='DATA-CoP'!E14 -> 0 | B24: ='DATA-CoP'!F14 -> 0 | C24: ='DATA-CoP'!G14 -> 0 | D24: ='DATA-CoP'!K14 -> 0 | E24: ='DATA-CoP'!BG14 -> 0 | F24: ='DATA-CoP'!BH14 -> 0 | G24: ='DATA-CoP'!BI14 -> 0 | H24: ='DATA-CoP'!BO14 -> 0 | I24: ='DATA-CoP'!BP14 -> 0 | J24: ='DATA-CoP'!BQ14 -> 0 | K24: ='DATA-CoP'!M14 -> 0 | L24: ='DATA-CoP'!O14 -> 0 | M24: ='DATA-CoP'!Q14 -> 0 | N24: ='DATA-CoP'!S14 -> 0 | O24: ='DATA-CoP'!U14 -> 0 | P24: ='DATA-CoP'!V14 -> 0 | Q24: ='DATA-CoP'!W14 -> 0 | R24: ='DATA-CoP'!X14 -> 0 | S24: ='DATA-CoP'!Y14 -> 0 | T24: ='DATA-CoP'!Z14 -> 0 | U24: ='DATA-CoP'!AA14 -> 0 | V24: ='DATA-CoP'!AB14 -> 0 | W24: ='DATA-CoP'!AC14 -> 0 | X24: ='DATA-CoP'!AD14 -> 0
A25: ='DATA-CoP'!E15 -> 0 | B25: ='DATA-CoP'!F15 -> 0 | C25: ='DATA-CoP'!G15 -> 0 | D25: ='DATA-CoP'!K15 -> 0 | E25: ='DATA-CoP'!BG15 -> 0 | F25: ='DATA-CoP'!BH15 -> 0 | G25: ='DATA-CoP'!BI15 -> 0 | H25: ='DATA-CoP'!BO15 -> 0 | I25: ='DATA-CoP'!BP15 -> 0 | J25: ='DATA-CoP'!BQ15 -> 0 | K25: ='DATA-CoP'!M15 -> 0 | L25: ='DATA-CoP'!O15 -> 0 | M25: ='DATA-CoP'!Q15 -> 0 | N25: ='DATA-CoP'!S15 -> 0 | O25: ='DATA-CoP'!U15 -> 0 | P25: ='DATA-CoP'!V15 -> 0 | Q25: ='DATA-CoP'!W15 -> 0 | R25: ='DATA-CoP'!X15 -> 0 | S25: ='DATA-CoP'!Y15 -> 0 | T25: ='DATA-CoP'!Z15 -> 0 | U25: ='DATA-CoP'!AA15 -> 0 | V25: ='DATA-CoP'!AB15 -> 0 | W25: ='DATA-CoP'!AC15 -> 0 | X25: ='DATA-CoP'!AD15 -> 0
A26: ='DATA-CoP'!E16 -> 0 | B26: ='DATA-CoP'!F16 -> 0 | C26: ='DATA-CoP'!G16 -> 0 | D26: ='DATA-CoP'!K16 -> 0 | E26: ='DATA-CoP'!BG16 -> 0 | F26: ='DATA-CoP'!BH16 -> 0 | G26: ='DATA-CoP'!BI16 -> 0 | H26: ='DATA-CoP'!BO16 -> 0 | I26: ='DATA-CoP'!BP16 -> 0 | J26: ='DATA-CoP'!BQ16 -> 0 | K26: ='DATA-CoP'!M16 -> 0 | L26: ='DATA-CoP'!O16 -> 0 | M26: ='DATA-CoP'!Q16 -> 0 | N26: ='DATA-CoP'!S16 -> 0 | O26: ='DATA-CoP'!U16 -> 0 | P26: ='DATA-CoP'!V16 -> 0 | Q26: ='DATA-CoP'!W16 -> 0 | R26: ='DATA-CoP'!X16 -> 0 | S26: ='DATA-CoP'!Y16 -> 0 | T26: ='DATA-CoP'!Z16 -> 0 | U26: ='DATA-CoP'!AA16 -> 0 | V26: ='DATA-CoP'!AB16 -> 0 | W26: ='DATA-CoP'!AC16 -> 0 | X26: ='DATA-CoP'!AD16 -> 0
A27: ='DATA-CoP'!E17 -> 0 | B27: ='DATA-CoP'!F17 -> 0 | C27: ='DATA-CoP'!G17 -> 0 | D27: ='DATA-CoP'!K17 -> 0 | E27: ='DATA-CoP'!BG17 -> 0 | F27: ='DATA-CoP'!BH17 -> 0 | G27: ='DATA-CoP'!BI17 -> 0 | H27: ='DATA-CoP'!BO17 -> 0 | I27: ='DATA-CoP'!BP17 -> 0 | J27: ='DATA-CoP'!BQ17 -> 0 | K27: ='DATA-CoP'!M17 -> 0 | L27: ='DATA-CoP'!O17 -> 0 | M27: ='DATA-CoP'!Q17 -> 0 | N27: ='DATA-CoP'!S17 -> 0 | O27: ='DATA-CoP'!U17 -> 0 | P27: ='DATA-CoP'!V17 -> 0 | Q27: ='DATA-CoP'!W17 -> 0 | R27: ='DATA-CoP'!X17 -> 0 | S27: ='DATA-CoP'!Y17 -> 0 | T27: ='DATA-CoP'!Z17 -> 0 | U27: ='DATA-CoP'!AA17 -> 0 | V27: ='DATA-CoP'!AB17 -> 0 | W27: ='DATA-CoP'!AC17 -> 0 | X27: ='DATA-CoP'!AD17 -> 0
A28: ='DATA-CoP'!E18 -> 0 | B28: ='DATA-CoP'!F18 -> 0 | C28: ='DATA-CoP'!G18 -> 0 | D28: ='DATA-CoP'!K18 -> 0 | E28: ='DATA-CoP'!BG18 -> 0 | F28: ='DATA-CoP'!BH18 -> 0 | G28: ='DATA-CoP'!BI18 -> 0 | H28: ='DATA-CoP'!BO18 -> 0 | I28: ='DATA-CoP'!BP18 -> 0 | J28: ='DATA-CoP'!BQ18 -> 0 | K28: ='DATA-CoP'!M18 -> 0 | L28: ='DATA-CoP'!O18 -> 0 | M28: ='DATA-CoP'!Q18 -> 0 | N28: ='DATA-CoP'!S18 -> 0 | O28: ='DATA-CoP'!U18 -> 0 | P28: ='DATA-CoP'!V18 -> 0 | Q28: ='DATA-CoP'!W18 -> 0 | R28: ='DATA-CoP'!X18 -> 0 | S28: ='DATA-CoP'!Y18 -> 0 | T28: ='DATA-CoP'!Z18 -> 0 | U28: ='DATA-CoP'!AA18 -> 0 | V28: ='DATA-CoP'!AB18 -> 0 | W28: ='DATA-CoP'!AC18 -> 0 | X28: ='DATA-CoP'!AD18 -> 0
A29: ='DATA-CoP'!E19 -> 0 | B29: ='DATA-CoP'!F19 -> 0 | C29: ='DATA-CoP'!G19 -> 0 | D29: ='DATA-CoP'!K19 -> 0 | E29: ='DATA-CoP'!BG19 -> 0 | F29: ='DATA-CoP'!BH19 -> 0 | G29: ='DATA-CoP'!BI19 -> 0 | H29: ='DATA-CoP'!BO19 -> 0 | I29: ='DATA-CoP'!BP19 -> 0 | J29: ='DATA-CoP'!BQ19 -> 0 | K29: ='DATA-CoP'!M19 -> 0 | L29: ='DATA-CoP'!O19 -> 0 | M29: ='DATA-CoP'!Q19 -> 0 | N29: ='DATA-CoP'!S19 -> 0 | O29: ='DATA-CoP'!U19 -> 0 | P29: ='DATA-CoP'!V19 -> 0 | Q29: ='DATA-CoP'!W19 -> 0 | R29: ='DATA-CoP'!X19 -> 0 | S29: ='DATA-CoP'!Y19 -> 0 | T29: ='DATA-CoP'!Z19 -> 0 | U29: ='DATA-CoP'!AA19 -> 0 | V29: ='DATA-CoP'!AB19 -> 0 | W29: ='DATA-CoP'!AC19 -> 0 | X29: ='DATA-CoP'!AD19 -> 0
A30: ='DATA-CoP'!E20 -> 0 | B30: ='DATA-CoP'!F20 -> 0 | C30: ='DATA-CoP'!G20 -> 0 | D30: ='DATA-CoP'!K20 -> 0 | E30: ='DATA-CoP'!BG20 -> 0 | F30: ='DATA-CoP'!BH20 -> 0 | G30: ='DATA-CoP'!BI20 -> 0 | H30: ='DATA-CoP'!BO20 -> 0 | I30: ='DATA-CoP'!BP20 -> 0 | J30: ='DATA-CoP'!BQ20 -> 0 | K30: ='DATA-CoP'!M20 -> 0 | L30: ='DATA-CoP'!O20 -> 0 | M30: ='DATA-CoP'!Q20 -> 0 | N30: ='DATA-CoP'!S20 -> 0 | O30: ='DATA-CoP'!U20 -> 0 | P30: ='DATA-CoP'!V20 -> 0 | Q30: ='DATA-CoP'!W20 -> 0 | R30: ='DATA-CoP'!X20 -> 0 | S30: ='DATA-CoP'!Y20 -> 0 | T30: ='DATA-CoP'!Z20 -> 0 | U30: ='DATA-CoP'!AA20 -> 0 | V30: ='DATA-CoP'!AB20 -> 0 | W30: ='DATA-CoP'!AC20 -> 0 | X30: ='DATA-CoP'!AD20 -> 0
E32: =SUM(E16:E31) -> 0 | F32: 0 | G32: 0 | H32: 0 | I32: 0 | J32: 0
A34: Costdriver percentage | E34: =E32/$X$14 -> 0 | F34: 0 | G34: 0 | H34: 0 | I34: 0 | J34: 0 | L34: =L14/$X$14 -> 0.4008443519 | M34: 0.09675553322 | N34: 0.1935110664 | O34: 0 | P34: 0 | Q34: 0.03455554758 | R34: 0.01382221903 | S34: 0.006911109516 | T34: 0.1492799655 | U34: 0.08476603379 | V34: 0.01465155217 | W34: 0.08965091264 | X34: =SUM(L34:W34) -> 1.084748292
B40: Note:
B41: First save this Excel sheet with different name.
B42: Use button below to make fixed costs

Sheet OPEX
A2: =CAPEX!A2 -> Client | B2: =CAPEX!B2 -> Water treatment company
A3: =CAPEX!A3 -> Projectnumber | B3: =CAPEX!B3 -> P1234
A4: =CAPEX!A4 -> Projectname | B4: =CAPEX!B4 -> _
A5: =CAPEX!A5 -> Component | B5: Estimation exploitation
A6: =CAPEX!A6 -> Accuracy budget estimate | B6: =CAPEX!B6 -> Treatment proces selection +/- 30%
A7: =CAPEX!A7 -> By | B7: =CAPEX!B7 -> M.J.W.M. Bakker DHV Water
A8: =CAPEX!A8 -> Date | B8: =CAPEX!B8 -> 2009-02-06
E10: 22 | F10: 23 | G10: 24 | H10: 30 | I10: 31 | J10: 32 | K10: 1 | L10: 2 | M10: 3 | N10: 4 | O10: 5 | P10: 6 | Q10: 7 | R10: 8 | S10: 9 | T10: 10 | U10: 11 | V10: 12 | W10: 13 | X10: 14 | Y10: 15 | Z10: 16 | AA10: 17 | AB10: 18 | AC10: 19 | AD10: 20 | AE10: 21
A11: ='DATA-CoP'!AG2&" /year" -> EXPLOITATION COST /year | B11: ='DATA-CoP'!F2 -> Cost indicator | K11: ='DATA-CoP'!AI2 -> INTEREST / DEPRECIATION | L11: ='DATA-CoP'!$AK$2 -> CONSUMABLES | M11: ='DATA-CoP'!$AK$2 -> CONSUMABLES | N11: ='DATA-CoP'!$AK$2 -> CONSUMABLES | O11: ='DATA-CoP'!$AK$2 -> CONSUMABLES | P11: ='DATA-CoP'!$AK$2 -> CONSUMABLES | Q11: ='DATA-CoP'!$AK$2 -> CONSUMABLES | R11: ='DATA-CoP'!$AK$2 -> CONSUMABLES | S11: ='DATA-CoP'!$AK$2 -> CONSUMABLES | T11: ='DATA-CoP'!$AK$2 -> CONSUMABLES | U11: ='DATA-CoP'!$AK$2 -> CONSUMABLES | V11: ='DATA-CoP'!$AK$2 -> CONSUMABLES | W11: ='DATA-CoP'!$AK$2 -> CONSUMABLES | X11: ='DATA-CoP'!$AK$2 -> CONSUMABLES | Y11: ='DATA-CoP'!$AK$2 -> CONSUMABLES | Z11: ='DATA-CoP'!$AK$2 -> CONSUMABLES | AA11: ='DATA-CoP'!BT2 -> MAINTENANCE | AB11: ='DATA-CoP'!BV2 -> Specific costs | AC11: ='DATA-CoP'!BW2 -> Specific costs | AD11: ='DATA-CoP'!BY2 -> Specific costs | AE11: ='DATA-CoP'!BZ2 -> Administration costs | AF11: ='DATA-CoP'!CA2 -> EXPLOITATIE
A12: ='DATA-CoP'!E3 -> process name | B12: ='DATA-CoP'!F3 -> range | C12: ='DATA-CoP'!G3 -> Parameter 1 | D12: ='DATA-CoP'!K2 -> range function | E12: ='DATA-CoP'!BG3 -> Waste | F12: ='DATA-CoP'!BH3 -> Chem. Waste | G12: ='DATA-CoP'!BI3 -> Pellets | H12: ='DATA-CoP'!BO3 -> Membraans | I12: ='DATA-CoP'!BP3 -> Active carbon | J12: ='DATA-CoP'!BQ3 -> Antraciet + sand | K12: Rente/ afschrijving | L12: ='DATA-CoP'!AK3 -> Energy | M12: ='DATA-CoP'!AL3 -> Chemicals | N12: ='DATA-CoP'!BG3 -> Waste | O12: ='DATA-CoP'!BH3 -> Chem. Waste | P12: ='DATA-CoP'!BI3 -> Pellets | Q12: ='DATA-CoP'!BJ3 -> Brine to sewer | R12: ='DATA-CoP'!BK3 -> Waste | S12: ='DATA-CoP'!BL3 -> Taxes groundwater | T12: ='DATA-CoP'!BM3 -> Levies Prov. | U12: Depreciation | V12: ='DATA-CoP'!BO3 -> Membraans | W12: ='DATA-CoP'!BP3 -> Active carbon | X12: ='DATA-CoP'!BQ3 -> Antraciet + sand | Y12: ='DATA-CoP'!BR3 -> UV lights | Z12: ='DATA-CoP'!BS3 -> Filling materials | AA12: ='DATA-CoP'!BT3 -> Maintenance | AB12: ='DATA-CoP'!BV3 -> Operation | AC12: ='DATA-CoP'!BW3 -> Analysing | AD12: ='DATA-CoP'!BY3 -> Protection | AE12: ='DATA-CoP'!BZ3 -> Administration | AF12: ='DATA-CoP'!CA3 -> TOTAAL
E13: ='DATA-CoP'!BG4 -> € / year | F13: ='DATA-CoP'!BH4 -> € / year | G13: ='DATA-CoP'!BI4 -> € / year | H13: ='DATA-CoP'!BO4 -> € / year | I13: ='DATA-CoP'!BP4 -> € / year | J13: ='DATA-CoP'!BQ4 -> € / year | K13: ='DATA-CoP'!AI4 -> € / year | L13: ='DATA-CoP'!AK4 -> € / year | M13: ='DATA-CoP'!AL4 -> € / year | N13: ='DATA-CoP'!BG4 -> € / year | O13: ='DATA-CoP'!BH4 -> € / year | P13: ='DATA-CoP'!BI4 -> € / year | Q13: ='DATA-CoP'!BJ4 -> € / year | R13: ='DATA-CoP'!BK4 -> € / year | S13: ='DATA-CoP'!BL4 -> € / year | T13: ='DATA-CoP'!BM4 -> € / year | U13: ='DATA-CoP'!BN4 -> € / year | V13: ='DATA-CoP'!BO4 -> € / year | W13: ='DATA-CoP'!BP4 -> € / year | X13: ='DATA-CoP'!BQ4 -> € / year | Y13: ='DATA-CoP'!BR4 -> € / year | Z13: ='DATA-CoP'!BS4 -> € / year | AA13: ='DATA-CoP'!BT4 -> € / year | AB13: ='DATA-CoP'!BV4 -> € / year | AC13: ='DATA-CoP'!BW4 -> € / year | AD13: ='DATA-CoP'!BY4 -> € / year | AE13: ='DATA-CoP'!BZ4 -> € / year | AF13: ='DATA-CoP'!CA4 -> € / year | AG13: Bandwidth
A14: TOTALEN | K14: =SUM(K16:K31) -> 988765.2511 | L14: 187200 | M14: 0 | N14: 0 | O14: 0 | P14: 0 | Q14: 0 | R14: 0 | S14: 4373200 | T14: 520000 | U14: 0 | V14: 0 | W14: 0 | X14: 0 | Y14: 0 | Z14: 0 | AA14: 211726.1249 | AB14: 63517.83747 | AC14: 0 | AD14: 13868.52347 | AE14: 15477.27219 | AF14: =ROUND(SUM(AF16:AF31),-3) -> 6374000 | AG14: +/- 30%
A16: ='DATA-CoP'!E6 -> Example Winputten | B16: ='DATA-CoP'!F6 -> aantal putten (1-26 #) | C16: ='DATA-CoP'!G6 -> 106.8493151 | D16: ='DATA-CoP'!K6 -> > | E16: ='DATA-CoP'!BG6 -> 0 | F16: ='DATA-CoP'!BH6 -> 0 | G16: ='DATA-CoP'!BI6 -> 0 | H16: ='DATA-CoP'!BO6 -> 0 | I16: ='DATA-CoP'!BP6 -> 0 | J16: ='DATA-CoP'!BQ6 -> 0 | K16: ='DATA-CoP'!AI6 -> 988765.2511 | L16: ='DATA-CoP'!AK6 -> 187200 | M16: ='DATA-CoP'!AL6 -> 0 | N16: ='DATA-CoP'!BG6 -> 0 | O16: ='DATA-CoP'!BH6 -> 0 | P16: ='DATA-CoP'!BI6 -> 0 | Q16: ='DATA-CoP'!BJ6 -> 0 | R16: ='DATA-CoP'!BK6 -> 0 | S16: ='DATA-CoP'!BL6 -> 4373200 | T16: ='DATA-CoP'!BM6 -> 520000 | U16: ='DATA-CoP'!BN6 -> 0 | V16: ='DATA-CoP'!BO6 -> 0 | W16: ='DATA-CoP'!BP6 -> 0 | X16: ='DATA-CoP'!BQ6 -> 0 | Y16: ='DATA-CoP'!BR6 -> 0 | Z16: ='DATA-CoP'!BS6 -> 0 | AA16: ='DATA-CoP'!BT6 -> 211726.1249 | AB16: ='DATA-CoP'!BV6 -> 63517.83747 | AC16: ='DATA-CoP'!BW6 -> 0 | AD16: ='DATA-CoP'!BY6 -> 13868.52347 | AE16: ='DATA-CoP'!BZ6 -> 15477.27219 | AF16: ='DATA-CoP'!CA6 -> 6373755.009
A17: ='DATA-CoP'!E7 -> 0 | B17: ='DATA-CoP'!F7 -> 0 | C17: ='DATA-CoP'!G7 -> 0 | D17: ='DATA-CoP'!K7 -> 0 | E17: ='DATA-CoP'!BG7 -> 0 | F17: ='DATA-CoP'!BH7 -> 0 | G17: ='DATA-CoP'!BI7 -> 0 | H17: ='DATA-CoP'!BO7 -> 0 | I17: ='DATA-CoP'!BP7 -> 0 | J17: ='DATA-CoP'!BQ7 -> 0 | K17: ='DATA-CoP'!AI7 -> 0 | L17: ='DATA-CoP'!AK7 -> 0 | M17: ='DATA-CoP'!AL7 -> 0 | N17: ='DATA-CoP'!BG7 -> 0 | O17: ='DATA-CoP'!BH7 -> 0 | P17: ='DATA-CoP'!BI7 -> 0 | Q17: ='DATA-CoP'!BJ7 -> 0 | R17: ='DATA-CoP'!BK7 -> 0 | S17: ='DATA-CoP'!BL7 -> 0 | T17: ='DATA-CoP'!BM7 -> 0 | U17: ='DATA-CoP'!BN7 -> 0 | V17: ='DATA-CoP'!BO7 -> 0 | W17: ='DATA-CoP'!BP7 -> 0 | X17: ='DATA-CoP'!BQ7 -> 0 | Y17: ='DATA-CoP'!BR7 -> 0 | Z17: ='DATA-CoP'!BS7 -> 0 | AA17: ='DATA-CoP'!BT7 -> 0 | AB17: ='DATA-CoP'!BV7 -> 0 | AC17: ='DATA-CoP'!BW7 -> 0 | AD17: ='DATA-CoP'!BY7 -> 0 | AE17: ='DATA-CoP'!BZ7 -> 0 | AF17: ='DATA-CoP'!CA7 -> 0
A18: ='DATA-CoP'!E8 -> 0 | B18: ='DATA-CoP'!F8 -> 0 | C18: ='DATA-CoP'!G8 -> 0 | D18: ='DATA-CoP'!K8 -> 0 | E18: ='DATA-CoP'!BG8 -> 0 | F18: ='DATA-CoP'!BH8 -> 0 | G18: ='DATA-CoP'!BI8 -> 0 | H18: ='DATA-CoP'!BO8 -> 0 | I18: ='DATA-CoP'!BP8 -> 0 | J18: ='DATA-CoP'!BQ8 -> 0 | K18: ='DATA-CoP'!AI8 -> 0 | L18: ='DATA-CoP'!AK8 -> 0 | M18: ='DATA-CoP'!AL8 -> 0 | N18: ='DATA-CoP'!BG8 -> 0 | O18: ='DATA-CoP'!BH8 -> 0 | P18: ='DATA-CoP'!BI8 -> 0 | Q18: ='DATA-CoP'!BJ8 -> 0 | R18: ='DATA-CoP'!BK8 -> 0 | S18: ='DATA-CoP'!BL8 -> 0 | T18: ='DATA-CoP'!BM8 -> 0 | U18: ='DATA-CoP'!BN8 -> 0 | V18: ='DATA-CoP'!BO8 -> 0 | W18: ='DATA-CoP'!BP8 -> 0 | X18: ='DATA-CoP'!BQ8 -> 0 | Y18: ='DATA-CoP'!BR8 -> 0 | Z18: ='DATA-CoP'!BS8 -> 0 | AA18: ='DATA-CoP'!BT8 -> 0 | AB18: ='DATA-CoP'!BV8 -> 0 | AC18: ='DATA-CoP'!BW8 -> 0 | AD18: ='DATA-CoP'!BY8 -> 0 | AE18: ='DATA-CoP'!BZ8 -> 0 | AF18: ='DATA-CoP'!CA8 -> 0
A19: ='DATA-CoP'!E9 -> 0 | B19: ='DATA-CoP'!F9 -> 0 | C19: ='DATA-CoP'!G9 -> 0 | D19: ='DATA-CoP'!K9 -> 0 | E19: ='DATA-CoP'!BG9 -> 0 | F19: ='DATA-CoP'!BH9 -> 0 | G19: ='DATA-CoP'!BI9 -> 0 | H19: ='DATA-CoP'!BO9 -> 0 | I19: ='DATA-CoP'!BP9 -> 0 | J19: ='DATA-CoP'!BQ9 -> 0 | K19: ='DATA-CoP'!AI9 -> 0 | L19: ='DATA-CoP'!AK9 -> 0 | M19: ='DATA-CoP'!AL9 -> 0 | N19: ='DATA-CoP'!BG9 -> 0 | O19: ='DATA-CoP'!BH9 -> 0 | P19: ='DATA-CoP'!BI9 -> 0 | Q19: ='DATA-CoP'!BJ9 -> 0 | R19: ='DATA-CoP'!BK9 -> 0 | S19: ='DATA-CoP'!BL9 -> 0 | T19: ='DATA-CoP'!BM9 -> 0 | U19: ='DATA-CoP'!BN9 -> 0 | V19: ='DATA-CoP'!BO9 -> 0 | W19: ='DATA-CoP'!BP9 -> 0 | X19: ='DATA-CoP'!BQ9 -> 0 | Y19: ='DATA-CoP'!BR9 -> 0 | Z19: ='DATA-CoP'!BS9 -> 0 | AA19: ='DATA-CoP'!BT9 -> 0 | AB19: ='DATA-CoP'!BV9 -> 0 | AC19: ='DATA-CoP'!BW9 -> 0 | AD19: ='DATA-CoP'!BY9 -> 0 | AE19: ='DATA-CoP'!BZ9 -> 0 | AF19: ='DATA-CoP'!CA9 -> 0
A20: ='DATA-CoP'!E10 -> 0 | B20: ='DATA-CoP'!F10 -> 0 | C20: ='DATA-CoP'!G10 -> 0 | D20: ='DATA-CoP'!K10 -> 0 | E20: ='DATA-CoP'!BG10 -> 0 | F20: ='DATA-CoP'!BH10 -> 0 | G20: ='DATA-CoP'!BI10 -> 0 | H20: ='DATA-CoP'!BO10 -> 0 | I20: ='DATA-CoP'!BP10 -> 0 | J20: ='DATA-CoP'!BQ10 -> 0 | K20: ='DATA-CoP'!AI10 -> 0 | L20: ='DATA-CoP'!AK10 -> 0 | M20: ='DATA-CoP'!AL10 -> 0 | N20: ='DATA-CoP'!BG10 -> 0 | O20: ='DATA-CoP'!BH10 -> 0 | P20: ='DATA-CoP'!BI10 -> 0 | Q20: ='DATA-CoP'!BJ10 -> 0 | R20: ='DATA-CoP'!BK10 -> 0 | S20: ='DATA-CoP'!BL10 -> 0 | T20: ='DATA-CoP'!BM10 -> 0 | U20: ='DATA-CoP'!BN10 -> 0 | V20: ='DATA-CoP'!BO10 -> 0 | W20: ='DATA-CoP'!BP10 -> 0 | X20: ='DATA-CoP'!BQ10 -> 0 | Y20: ='DATA-CoP'!BR10 -> 0 | Z20: ='DATA-CoP'!BS10 -> 0 | AA20: ='DATA-CoP'!BT10 -> 0 | AB20: ='DATA-CoP'!BV10 -> 0 | AC20: ='DATA-CoP'!BW10 -> 0 | AD20: ='DATA-CoP'!BY10 -> 0 | AE20: ='DATA-CoP'!BZ10 -> 0 | AF20: ='DATA-CoP'!CA10 -> 0
A21: ='DATA-CoP'!E11 -> 0 | B21: ='DATA-CoP'!F11 -> 0 | C21: ='DATA-CoP'!G11 -> 0 | D21: ='DATA-CoP'!K11 -> 0 | E21: ='DATA-CoP'!BG11 -> 0 | F21: ='DATA-CoP'!BH11 -> 0 | G21: ='DATA-CoP'!BI11 -> 0 | H21: ='DATA-CoP'!BO11 -> 0 | I21: ='DATA-CoP'!BP11 -> 0 | J21: ='DATA-CoP'!BQ11 -> 0 | K21: ='DATA-CoP'!AI11 -> 0 | L21: ='DATA-CoP'!AK11 -> 0 | M21: ='DATA-CoP'!AL11 -> 0 | N21: ='DATA-CoP'!BG11 -> 0 | O21: ='DATA-CoP'!BH11 -> 0 | P21: ='DATA-CoP'!BI11 -> 0 | Q21: ='DATA-CoP'!BJ11 -> 0 | R21: ='DATA-CoP'!BK11 -> 0 | S21: ='DATA-CoP'!BL11 -> 0 | T21: ='DATA-CoP'!BM11 -> 0 | U21: ='DATA-CoP'!BN11 -> 0 | V21: ='DATA-CoP'!BO11 -> 0 | W21: ='DATA-CoP'!BP11 -> 0 | X21: ='DATA-CoP'!BQ11 -> 0 | Y21: ='DATA-CoP'!BR11 -> 0 | Z21: ='DATA-CoP'!BS11 -> 0 | AA21: ='DATA-CoP'!BT11 -> 0 | AB21: ='DATA-CoP'!BV11 -> 0 | AC21: ='DATA-CoP'!BW11 -> 0 | AD21: ='DATA-CoP'!BY11 -> 0 | AE21: ='DATA-CoP'!BZ11 -> 0 | AF21: ='DATA-CoP'!CA11 -> 0
A22: ='DATA-CoP'!E12 -> 0 | B22: ='DATA-CoP'!F12 -> 0 | C22: ='DATA-CoP'!G12 -> 0 | D22: ='DATA-CoP'!K12 -> 0 | E22: ='DATA-CoP'!BG12 -> 0 | F22: ='DATA-CoP'!BH12 -> 0 | G22: ='DATA-CoP'!BI12 -> 0 | H22: ='DATA-CoP'!BO12 -> 0 | I22: ='DATA-CoP'!BP12 -> 0 | J22: ='DATA-CoP'!BQ12 -> 0 | K22: ='DATA-CoP'!AI12 -> 0 | L22: ='DATA-CoP'!AK12 -> 0 | M22: ='DATA-CoP'!AL12 -> 0 | N22: ='DATA-CoP'!BG12 -> 0 | O22: ='DATA-CoP'!BH12 -> 0 | P22: ='DATA-CoP'!BI12 -> 0 | Q22: ='DATA-CoP'!BJ12 -> 0 | R22: ='DATA-CoP'!BK12 -> 0 | S22: ='DATA-CoP'!BL12 -> 0 | T22: ='DATA-CoP'!BM12 -> 0 | U22: ='DATA-CoP'!BN12 -> 0 | V22: ='DATA-CoP'!BO12 -> 0 | W22: ='DATA-CoP'!BP12 -> 0 | X22: ='DATA-CoP'!BQ12 -> 0 | Y22: ='DATA-CoP'!BR12 -> 0 | Z22: ='DATA-CoP'!BS12 -> 0 | AA22: ='DATA-CoP'!BT12 -> 0 | AB22: ='DATA-CoP'!BV12 -> 0 | AC22: ='DATA-CoP'!BW12 -> 0 | AD22: ='DATA-CoP'!BY12 -> 0 | AE22: ='DATA-CoP'!BZ12 -> 0 | AF22: ='DATA-CoP'!CA12 -> 0
A23: ='DATA-CoP'!E13 -> 0 | B23: ='DATA-CoP'!F13 -> 0 | C23: ='DATA-CoP'!G13 -> 0 | D23: ='DATA-CoP'!K13 -> 0 | E23: ='DATA-CoP'!BG13 -> 0 | F23: ='DATA-CoP'!BH13 -> 0 | G23: ='DATA-CoP'!BI13 -> 0 | H23: ='DATA-CoP'!BO13 -> 0 | I23: ='DATA-CoP'!BP13 -> 0 | J23: ='DATA-CoP'!BQ13 -> 0 | K23: ='DATA-CoP'!AI13 -> 0 | L23: ='DATA-CoP'!AK13 -> 0 | M23: ='DATA-CoP'!AL13 -> 0 | N23: ='DATA-CoP'!BG13 -> 0 | O23: ='DATA-CoP'!BH13 -> 0 | P23: ='DATA-CoP'!BI13 -> 0 | Q23: ='DATA-CoP'!BJ13 -> 0 | R23: ='DATA-CoP'!BK13 -> 0 | S23: ='DATA-CoP'!BL13 -> 0 | T23: ='DATA-CoP'!BM13 -> 0 | U23: ='DATA-CoP'!BN13 -> 0 | V23: ='DATA-CoP'!BO13 -> 0 | W23: ='DATA-CoP'!BP13 -> 0 | X23: ='DATA-CoP'!BQ13 -> 0 | Y23: ='DATA-CoP'!BR13 -> 0 | Z23: ='DATA-CoP'!BS13 -> 0 | AA23: ='DATA-CoP'!BT13 -> 0 | AB23: ='DATA-CoP'!BV13 -> 0 | AC23: ='DATA-CoP'!BW13 -> 0 | AD23: ='DATA-CoP'!BY13 -> 0 | AE23: ='DATA-CoP'!BZ13 -> 0 | AF23: ='DATA-CoP'!CA13 -> 0
A24: ='DATA-CoP'!E14 -> 0 | B24: ='DATA-CoP'!F14 -> 0 | C24: ='DATA-CoP'!G14 -> 0 | D24: ='DATA-CoP'!K14 -> 0 | E24: ='DATA-CoP'!BG14 -> 0 | F24: ='DATA-CoP'!BH14 -> 0 | G24: ='DATA-CoP'!BI14 -> 0 | H24: ='DATA-CoP'!BO14 -> 0 | I24: ='DATA-CoP'!BP14 -> 0 | J24: ='DATA-CoP'!BQ14 -> 0 | K24: ='DATA-CoP'!AI14 -> 0 | L24: ='DATA-CoP'!AK14 -> 0 | M24: ='DATA-CoP'!AL14 -> 0 | N24: ='DATA-CoP'!BG14 -> 0 | O24: ='DATA-CoP'!BH14 -> 0 | P24: ='DATA-CoP'!BI14 -> 0 | Q24: ='DATA-CoP'!BJ14 -> 0 | R24: ='DATA-CoP'!BK14 -> 0 | S24: ='DATA-CoP'!BL14 -> 0 | T24: ='DATA-CoP'!BM14 -> 0 | U24: ='DATA-CoP'!BN14 -> 0 | V24: ='DATA-CoP'!BO14 -> 0 | W24: ='DATA-CoP'!BP14 -> 0 | X24: ='DATA-CoP'!BQ14 -> 0 | Y24: ='DATA-CoP'!BR14 -> 0 | Z24: ='DATA-CoP'!BS14 -> 0 | AA24: ='DATA-CoP'!BT14 -> 0 | AB24: ='DATA-CoP'!BV14 -> 0 | AC24: ='DATA-CoP'!BW14 -> 0 | AD24: ='DATA-CoP'!BY14 -> 0 | AE24: ='DATA-CoP'!BZ14 -> 0 | AF24: ='DATA-CoP'!CA14 -> 0
A25: ='DATA-CoP'!E15 -> 0 | B25: ='DATA-CoP'!F15 -> 0 | C25: ='DATA-CoP'!G15 -> 0 | D25: ='DATA-CoP'!K15 -> 0 | E25: ='DATA-CoP'!BG15 -> 0 | F25: ='DATA-CoP'!BH15 -> 0 | G25: ='DATA-CoP'!BI15 -> 0 | H25: ='DATA-CoP'!BO15 -> 0 | I25: ='DATA-CoP'!BP15 -> 0 | J25: ='DATA-CoP'!BQ15 -> 0 | K25: ='DATA-CoP'!AI15 -> 0 | L25: ='DATA-CoP'!AK15 -> 0 | M25: ='DATA-CoP'!AL15 -> 0 | N25: ='DATA-CoP'!BG15 -> 0 | O25: ='DATA-CoP'!BH15 -> 0 | P25: ='DATA-CoP'!BI15 -> 0 | Q25: ='DATA-CoP'!BJ15 -> 0 | R25: ='DATA-CoP'!BK15 -> 0 | S25: ='DATA-CoP'!BL15 -> 0 | T25: ='DATA-CoP'!BM15 -> 0 | U25: ='DATA-CoP'!BN15 -> 0 | V25: ='DATA-CoP'!BO15 -> 0 | W25: ='DATA-CoP'!BP15 -> 0 | X25: ='DATA-CoP'!BQ15 -> 0 | Y25: ='DATA-CoP'!BR15 -> 0 | Z25: ='DATA-CoP'!BS15 -> 0 | AA25: ='DATA-CoP'!BT15 -> 0 | AB25: ='DATA-CoP'!BV15 -> 0 | AC25: ='DATA-CoP'!BW15 -> 0 | AD25: ='DATA-CoP'!BY15 -> 0 | AE25: ='DATA-CoP'!BZ15 -> 0 | AF25: ='DATA-CoP'!CA15 -> 0
A26: ='DATA-CoP'!E16 -> 0 | B26: ='DATA-CoP'!F16 -> 0 | C26: ='DATA-CoP'!G16 -> 0 | D26: ='DATA-CoP'!K16 -> 0 | E26: ='DATA-CoP'!BG16 -> 0 | F26: ='DATA-CoP'!BH16 -> 0 | G26: ='DATA-CoP'!BI16 -> 0 | H26: ='DATA-CoP'!BO16 -> 0 | I26: ='DATA-CoP'!BP16 -> 0 | J26: ='DATA-CoP'!BQ16 -> 0 | K26: ='DATA-CoP'!AI16 -> 0 | L26: ='DATA-CoP'!AK16 -> 0 | M26: ='DATA-CoP'!AL16 -> 0 | N26: ='DATA-CoP'!BG16 -> 0 | O26: ='DATA-CoP'!BH16 -> 0 | P26: ='DATA-CoP'!BI16 -> 0 | Q26: ='DATA-CoP'!BJ16 -> 0 | R26: ='DATA-CoP'!BK16 -> 0 | S26: ='DATA-CoP'!BL16 -> 0 | T26: ='DATA-CoP'!BM16 -> 0 | U26: ='DATA-CoP'!BN16 -> 0 | V26: ='DATA-CoP'!BO16 -> 0 | W26: ='DATA-CoP'!BP16 -> 0 | X26: ='DATA-CoP'!BQ16 -> 0 | Y26: ='DATA-CoP'!BR16 -> 0 | Z26: ='DATA-CoP'!BS16 -> 0 | AA26: ='DATA-CoP'!BT16 -> 0 | AB26: ='DATA-CoP'!BV16 -> 0 | AC26: ='DATA-CoP'!BW16 -> 0 | AD26: ='DATA-CoP'!BY16 -> 0 | AE26: ='DATA-CoP'!BZ16 -> 0 | AF26: ='DATA-CoP'!CA16 -> 0
A27: ='DATA-CoP'!E17 -> 0 | B27: ='DATA-CoP'!F17 -> 0 | C27: ='DATA-CoP'!G17 -> 0 | D27: ='DATA-CoP'!K17 -> 0 | E27: ='DATA-CoP'!BG17 -> 0 | F27: ='DATA-CoP'!BH17 -> 0 | G27: ='DATA-CoP'!BI17 -> 0 | H27: ='DATA-CoP'!BO17 -> 0 | I27: ='DATA-CoP'!BP17 -> 0 | J27: ='DATA-CoP'!BQ17 -> 0 | K27: ='DATA-CoP'!AI17 -> 0 | L27: ='DATA-CoP'!AK17 -> 0 | M27: ='DATA-CoP'!AL17 -> 0 | N27: ='DATA-CoP'!BG17 -> 0 | O27: ='DATA-CoP'!BH17 -> 0 | P27: ='DATA-CoP'!BI17 -> 0 | Q27: ='DATA-CoP'!BJ17 -> 0 | R27: ='DATA-CoP'!BK17 -> 0 | S27: ='DATA-CoP'!BL17 -> 0 | T27: ='DATA-CoP'!BM17 -> 0 | U27: ='DATA-CoP'!BN17 -> 0 | V27: ='DATA-CoP'!BO17 -> 0 | W27: ='DATA-CoP'!BP17 -> 0 | X27: ='DATA-CoP'!BQ17 -> 0 | Y27: ='DATA-CoP'!BR17 -> 0 | Z27: ='DATA-CoP'!BS17 -> 0 | AA27: ='DATA-CoP'!BT17 -> 0 | AB27: ='DATA-CoP'!BV17 -> 0 | AC27: ='DATA-CoP'!BW17 -> 0 | AD27: ='DATA-CoP'!BY17 -> 0 | AE27: ='DATA-CoP'!BZ17 -> 0 | AF27: ='DATA-CoP'!CA17 -> 0
A28: ='DATA-CoP'!E18 -> 0 | B28: ='DATA-CoP'!F18 -> 0 | C28: ='DATA-CoP'!G18 -> 0 | D28: ='DATA-CoP'!K18 -> 0 | E28: ='DATA-CoP'!BG18 -> 0 | F28: ='DATA-CoP'!BH18 -> 0 | G28: ='DATA-CoP'!BI18 -> 0 | H28: ='DATA-CoP'!BO18 -> 0 | I28: ='DATA-CoP'!BP18 -> 0 | J28: ='DATA-CoP'!BQ18 -> 0 | K28: ='DATA-CoP'!AI18 -> 0 | L28: ='DATA-CoP'!AK18 -> 0 | M28: ='DATA-CoP'!AL18 -> 0 | N28: ='DATA-CoP'!BG18 -> 0 | O28: ='DATA-CoP'!BH18 -> 0 | P28: ='DATA-CoP'!BI18 -> 0 | Q28: ='DATA-CoP'!BJ18 -> 0 | R28: ='DATA-CoP'!BK18 -> 0 | S28: ='DATA-CoP'!BL18 -> 0 | T28: ='DATA-CoP'!BM18 -> 0 | U28: ='DATA-CoP'!BN18 -> 0 | V28: ='DATA-CoP'!BO18 -> 0 | W28: ='DATA-CoP'!BP18 -> 0 | X28: ='DATA-CoP'!BQ18 -> 0 | Y28: ='DATA-CoP'!BR18 -> 0 | Z28: ='DATA-CoP'!BS18 -> 0 | AA28: ='DATA-CoP'!BT18 -> 0 | AB28: ='DATA-CoP'!BV18 -> 0 | AC28: ='DATA-CoP'!BW18 -> 0 | AD28: ='DATA-CoP'!BY18 -> 0 | AE28: ='DATA-CoP'!BZ18 -> 0 | AF28: ='DATA-CoP'!CA18 -> 0
A29: ='DATA-CoP'!E19 -> 0 | B29: ='DATA-CoP'!F19 -> 0 | C29: ='DATA-CoP'!G19 -> 0 | D29: ='DATA-CoP'!K19 -> 0 | E29: ='DATA-CoP'!BG19 -> 0 | F29: ='DATA-CoP'!BH19 -> 0 | G29: ='DATA-CoP'!BI19 -> 0 | H29: ='DATA-CoP'!BO19 -> 0 | I29: ='DATA-CoP'!BP19 -> 0 | J29: ='DATA-CoP'!BQ19 -> 0 | K29: ='DATA-CoP'!AI19 -> 0 | L29: ='DATA-CoP'!AK19 -> 0 | M29: ='DATA-CoP'!AL19 -> 0 | N29: ='DATA-CoP'!BG19 -> 0 | O29: ='DATA-CoP'!BH19 -> 0 | P29: ='DATA-CoP'!BI19 -> 0 | Q29: ='DATA-CoP'!BJ19 -> 0 | R29: ='DATA-CoP'!BK19 -> 0 | S29: ='DATA-CoP'!BL19 -> 0 | T29: ='DATA-CoP'!BM19 -> 0 | U29: ='DATA-CoP'!BN19 -> 0 | V29: ='DATA-CoP'!BO19 -> 0 | W29: ='DATA-CoP'!BP19 -> 0 | X29: ='DATA-CoP'!BQ19 -> 0 | Y29: ='DATA-CoP'!BR19 -> 0 | Z29: ='DATA-CoP'!BS19 -> 0 | AA29: ='DATA-CoP'!BT19 -> 0 | AB29: ='DATA-CoP'!BV19 -> 0 | AC29: ='DATA-CoP'!BW19 -> 0 | AD29: ='DATA-CoP'!BY19 -> 0 | AE29: ='DATA-CoP'!BZ19 -> 0 | AF29: ='DATA-CoP'!CA19 -> 0
A30: ='DATA-CoP'!E20 -> 0 | B30: ='DATA-CoP'!F20 -> 0 | C30: ='DATA-CoP'!G20 -> 0 | D30: ='DATA-CoP'!K20 -> 0 | E30: ='DATA-CoP'!BG20 -> 0 | F30: ='DATA-CoP'!BH20 -> 0 | G30: ='DATA-CoP'!BI20 -> 0 | H30: ='DATA-CoP'!BO20 -> 0 | I30: ='DATA-CoP'!BP20 -> 0 | J30: ='DATA-CoP'!BQ20 -> 0 | K30: ='DATA-CoP'!AI20 -> 0 | L30: ='DATA-CoP'!AK20 -> 0 | M30: ='DATA-CoP'!AL20 -> 0 | N30: ='DATA-CoP'!BG20 -> 0 | O30: ='DATA-CoP'!BH20 -> 0 | P30: ='DATA-CoP'!BI20 -> 0 | Q30: ='DATA-CoP'!BJ20 -> 0 | R30: ='DATA-CoP'!BK20 -> 0 | S30: ='DATA-CoP'!BL20 -> 0 | T30: ='DATA-CoP'!BM20 -> 0 | U30: ='DATA-CoP'!BN20 -> 0 | V30: ='DATA-CoP'!BO20 -> 0 | W30: ='DATA-CoP'!BP20 -> 0 | X30: ='DATA-CoP'!BQ20 -> 0 | Y30: ='DATA-CoP'!BR20 -> 0 | Z30: ='DATA-CoP'!BS20 -> 0 | AA30: ='DATA-CoP'!BT20 -> 0 | AB30: ='DATA-CoP'!BV20 -> 0 | AC30: ='DATA-CoP'!BW20 -> 0 | AD30: ='DATA-CoP'!BY20 -> 0 | AE30: ='DATA-CoP'!BZ20 -> 0 | AF30: ='DATA-CoP'!CA20 -> 0
E32: =SUM(E16:E31) -> 0 | F32: 0 | G32: 0 | H32: 0 | I32: 0 | J32: 0
A34: Costdriver percentage | E34: =E32/$AF$14 -> 0 | F34: 0 | G34: 0 | H34: 0 | I34: 0 | J34: 0 | K34: =K14/$AF$14 -> 0.1551247648 | L34: 0.02936931283 | M34: 0 | N34: 0 | O34: 0 | P34: 0 | Q34: 0 | R34: 0 | S34: 0.6860997804 | T34: 0.08158142454 | U34: 0 | V34: 0 | W34: 0 | X34: 0 | Y34: 0 | Z34: 0 | AA34: 0.0332171517 | AB34: 0.009965145509 | AC34: 0 | AD34: 0.002175795963 | AE34: 0.002428188294 | AF34: 1

Sheet Figures CAPEX (hidden)
B1: CAPEX figures | F1: DEFAULT | G1: Eenheid
C4: waarde | D4: eenheid | F4: Defaultwaarde | G4: eenheid
B5: Kengetal PA bouwkosten (hardware+software) | C5: 750 | D5: Eur per I/O | F5: 750 | G5: Eur per I/O
B9: Percentages bijkomende kosten ( toeslagen op bouwkosten) | F9: Defaultwaarde
B10: A toeslag voor algemene voorzieningen | C10: 5 | D10: % van bouwkosten Ct / Wtb / E&I / PA | F10: 5 | G10: % van bouwkosten Ct / Wtb / E&I / PA
B11: B inrichtingskosten | C11: 2 | D11: % van bouwkosten Ct / Wtb / E&I / PA | F11: 2 | G11: % van bouwkosten Ct / Wtb / E&I / PA
B12: C beveiligingskosten | C12: 1 | D12: % van bouwkosten Ct / Wtb / E&I / PA | F12: 1 | G12: % van bouwkosten Ct / Wtb / E&I / PA
B13: D voorbereiding en begeleiding zuiveringsprojecten | C13: 20 | D13: % van bouwkosten Ct / Wtb / E&I / PA +A+B+C | F13: 20 | G13: % van bouwkosten Ct / Wtb / E&I / PA +A+B+C
B14: E voorbereiding en begeleiding overige | C14: 10 | D14: % van bouwkosten Ct / Wtb / E&I / PA +A+B+C | F14: 10 | G14: % van bouwkosten Ct / Wtb / E&I / PA +A+B+C
B15: F overige bijkomende kosten | C15: 2 | D15: % van bouwkosten Ct / Wtb / E&I / PA +A+B+C | F15: 2 | G15: % van bouwkosten Ct / Wtb / E&I / PA +A+B+C
B16: G totale bouwrente | C16: 5 | D16: % van bouwkosten Ct / Wtb / E&I / PA +A+B+C+(D of E)+F | F16: 10 | G16: % van bouwkosten Ct / Wtb / E&I / PA +A+B+C+(D of E)+F
B23: INDEX CAPEX
B24: Year | C24: 2015
B25: Inflatie per jaar | C25: 2 | D25: procent
B33: Prijsindexatie bouwkosten | C33: 1 | D33: T.o.v. heden

Sheet Figures OPEX (hidden)
C1: ALGEMENE KENGETALLEN EXPLOITATIE
B3: 4-4-1 | C3: Vaste kosten afschrijvingstermijnen
C5: rente op basis van annuïteit | D5: 6 | E5: %
C6: levensduur Winning | D6: 40 | E6: jaar
C7: levensduur Civiele Techniek / Bouwkunde | D7: 40 | E7: jaar
C8: levensduur Werktuigbouwkunde | D8: 25 | E8: jaar
C9: levensduur Elektrotechniek | D9: 20 | E9: jaar
C10: levensduur PA | D10: 10 | E10: jaar
C11: levensduur Transportleidingen | D11: 80 | E11: jaar
C12: levensduur Membranen UF / HF | D12: 8 | E12: jaar
C13: levensduur Membranen NF / HF | D13: 5 | E13: jaar
C14: levensduur Membranen RO zeewater | D14: 4 | E14: jaar
C15: Vervanging aktief kool (nieuw) | D15: 2 | E15: jaar
C16: Vervanging aktief kool (regeneratie) | D16: 1.5 | E16: jaar
C17: levensduur overige (filterzand etc.) | D17: 10 | E17: jaar
B25: 4-4-2 | C25: Verbruikskosten / heffingen
B27: Energiekosten
C30: Energiekosten | D30: 0.08 | E30: Eur/kWh
D34: invoer | E34: eenheid
B35: 1 | C35: Win of infiltratieputten | D35: 90 | E35: Wh/m3
B36: 2 | C36: Innamepompstation | D36: 40 | E36: Wh/m3
B37: 3 | C37: Microzeving | D37: 12 | E37: Wh/m3
B38: 4 | C38: Cascade beluchting | D38: 52 | E38: Wh/m3
B39: 5 | C39: Plaatbeluchting | D39: 40 | E39: Wh/m3
B40: 6 | C40: Torenbeluchting | D40: 60 | E40: Wh/m3
B41: 7 | C41: Vlokvorming | D41: 20 | E41: Wh/m3
B42: 8 | C42: Lamellenbezinking | D42: 5 | E42: Wh/m3
B43: 9 | C43: Flotatie | D43: 50 | E43: Wh/m3
B44: 10 | C44: Snelfiltratie (open systeem) | D44: 12 | E44: Wh/m3
B45: 11 | C45: Snelfiltratie (druk systeem) | D45: 25 | E45: Wh/m3
B46: 12 | C46: Micro- Ultrafiltratie (MF/UF) | D46: 100 | E46: Wh/m3
B47: 13 | C47: Ontharding | D47: 40 | E47: Wh/m3
B48: 14 | C48: Ozonisatie | D48: 50 | E48: Wh/m3
B49: 15 | C49: Actieve kool filtratie | D49: 8 | E49: Wh/m3
B50: 16 | C50: UV-desinfectie | D50: 54 | E50: Wh/m3
B51: 17 | C51: Ionenwisselaar | D51: 120 | E51: Wh/m3
B52: 18 | C52: Langzame zandfiltratie | D52: 4 | E52: Wh/m3
B53: 19 | C53: Nano-/ hyperfiltratie(NF/HF) | D53: 500 | E53: Wh/m3
B54: 20 | C54: Zeewater ontzouting (RO) | D54: 2500 | E54: Wh/m3
B55: 21 | C55: Splw. hergebruik (conventioneel) | D55: 40 | E55: Wh/m3
B56: 22 | C56: Slibbehandeling | D56: 0 | E56: Wh/m3
B57: 23 | C57: Spoel- / Slibwaterbuffer | D57: 8 | E57: Wh/m3
B58: 24 | C58: Reinwater berging | D58: 8 | E58: Wh/m3
B59: 25 | C59: Reinwater pompstation | D59: 120 | E59: Wh/m3
B60: 26 | C60: Boosterpompstation | D60: 120 | E60: Wh/m3
B61: 27 | C61: Transportleiding | D61: 4 | E61: Wh/m3.km
B62: 28 | C62: Boring / persing | D62: 8 | E62: Wh/m3.km
B63: 29 | C63: CO2 / O2 injectie | D63: 6 | E63: Wh/m3
B64: 30 | C64: Chem. dosering & opslag | D64: 0 | E64: Wh/m3
B65: 31 | C65: Noodstroom voorziening | E65: Eur/kWh
B66: 32
B67: 33
B68: 34
B69: 35
B70: 36
B71: 37
B72: 38
B73: 39
B74: 40
B75: 41
B76: 42
B77: 43
B78: 44
B79: 45
B80: 46
B81: 47
B82: 48
B83: 49
B84: 50
C85: rendement pompen | D85: 0.7 | E85: Niet wijzigen = standaard
E88: Eenheid
B89: Chemicaliën | E89: Eur /kg | F89: 100% oplossing !!
B90: 1 | C90: H2SO4 | D90: 0.15 | E90: Eur /kg
B91: 2 | C91: HCl | D91: 0.3545454545 | E91: Eur /kg
B92: 3 | C92: NaOH | D92: 0.24 | E92: Eur /kg
B93: 4 | C93: Ca(OH)2 | D93: 0.16 | E93: Eur /kg
B94: 5 | C94: Na2CO3 | D94: 0.3 | E94: Eur /kg
B95: 6 | C95: CaCO3 | D95: 0.061 | E95: Eur /kg
B96: 7 | C96: FeCl3 6H2O | D96: 0.119 | E96: Eur /kg
B97: 8 | C97: FeSO4 . 7H2O | D97: 0.111 | E97: Eur /kg
B98: 9 | C98: PAC (Sachtoclar) | D98: 0.235 | E98: Eur /kg
B99: 10 | C99: Al2(SO4)3 .18H2O | D99: 0 | E99: Eur /kg
B100: 11 | C100: Cl2 | D100: 0 | E100: Eur /kg
B101: 12 | C101: NaOCl | D101: 0 | E101: Eur /kg
B102: 13 | C102: NACl | D102: 0 | E102: Eur /kg
B103: 14 | C103: O3 | D103: 0 | E103: Eur /kg
B104: 15 | C104: H2O2 | D104: 0 | E104: Eur /kg
B105: 16 | C105: PE | D105: 0 | E105: Eur /kg
B106: 17 | C106: Citroenzuur | D106: 0 | E106: Eur /kg
B107: 18
B108: 19
B109: 20
B110: 21
B111: 22
B112: 23
B113: 24
B114: 25
B116: Verbruiksmaterialen
C117: membranen UF | D117: 100 | E117: Eur/m2
C118: membranen HF/Nano | D118: 15 | E118: Eur/m2
C119: zeewater HF | D119: 25 | E119: Eur/m2
C120: entzand ontharding | D120: 70 | E120: Eur/ton
C121: granaatzand ontharding | D121: 324 | E121: Eur/ton
C122: actieve kool (nieuw) | D122: 700 | E122: Eur/m3
C123: actieve kool (regeneratie) | D123: 350 | E123: Eur/m3
C124: antraciet SF | D124: 700 | E124: Eur/m3
C125: zand SF | D125: 140 | E125: Eur/m3
C126: zand LZF | D126: 140 | E126: Eur/m3
C127: marmer | D127: 100 | E127: Eur/m3
C128: UV-lampen lage druk | D128: 10000 | E128: uur levensduur
C129: UV-lampen lage druk | D129: 200 | E129: Eur/lamp
C130: UV-lampen midden druk | D130: 9000 | E130: uur levensduur
C131: UV-lampen midden druk | D131: 300 | E131: Eur/lamp
C132: UV-lampen hoge druk | D132: 8000 | E132: uur levensduur
C133: UV-lampen hoge druk | D133: 400 | E133: Eur/lamp
C134: pakkingsmateriaal beluchtingstoren | D134: 100 | E134: Eur/m3
B144: Afvoerkosten
C145: drinkwaterslib gewoon | D145: 200 | E145: Eur per ton ds
C146: drinkwaterslib chemisch | D146: 300 | E146: Eur per ton ds
C147: onthardingspellets | D147: 50 | E147: Eur per ton
C148: Afvoerkosten naar riool | D148: 0.3 | E148: Eur/m3
C149: Afvalstroom brein | D149: 0.02 | E149: Eur/m3
C150: Afvalstroom microzeefinstallatie | D150: 0.005 | E150: Eur/m3
C151: afvoer neutralisatie demiwater | D151: 0.1 | E151: Eur/m3
C156: Afvalstromen
B157: 1 | C157: Win of infiltratieputten
B158: 2 | C158: Innamepompstation
B159: 3 | C159: Microzeving | D159: 8 | E159: % van toevoer
B160: 4 | C160: Cascade beluchting
B161: 5 | C161: Plaatbeluchting
B162: 6 | C162: Torenbeluchting | D162: 3 | E162: % van toevoer
B163: 7 | C163: Vlokvorming
B164: 8 | C164: Lamellenbezinking | D164: 3 | E164: % van toevoer
B165: 9 | C165: Flotatie | D165: 3 | E165: % van toevoer
B166: 10 | C166: Snelfiltratie (open systeem) | D166: 4.3 | E166: % van toevoer
B167: 11 | C167: Snelfiltratie (druk systeem) | D167: 2 | E167: % van toevoer
B168: 12 | C168: Micro- Ultrafiltratie (MF/UF) | D168: 15 | E168: % van toevoer
B169: 13 | C169: Ontharding | D169: 0.3 | E169: % van toevoer
B170: 14 | C170: Ozonisatie
B171: 15 | C171: Actieve kool filtratie | D171: 0.4 | E171: % van toevoer
B172: 16 | C172: UV-desinfectie | D172: 0.1 | E172: % van toevoer
B173: 17 | C173: Ionenwisselaar | D173: 1 | E173: % van toevoer
B174: 18 | C174: Langzame zandfiltratie | D174: 0.03 | E174: % van toevoer
B175: 19 | C175: Nano-/ hyperfiltratie(NF/HF) | D175: 20 | E175: % van toevoer
B176: 20 | C176: Zeewater ontzouting (RO) | D176: 60 | E176: % van toevoer
B177: 21 | C177: Splw. hergebruik (conventioneel) | D177: 6.5 | E177: % inname debiet
B178: 22 | C178: Slibbehandeling
B179: 23 | C179: Spoel- / Slibwaterbuffer
B180: 24 | C180: Reinwater berging | D180: 0 | E180: % van toevoer
B181: 25 | C181: Reinwater pompstation
B182: 26 | C182: Boosterpompstation
B183: 27 | C183: Transportleiding
B184: 28 | C184: Boring / persing
B185: 29 | C185: CO2 / O2 injectie
B186: 30 | C186: Chem. dosering & opslag
B187: 31 | C187: Noodstroom voorziening
B188: 32
B189: 33
B190: 34
B191: 35
B192: 36
B193: 37
B194: 38
B195: 39
B196: 40
B197: 41
B198: 42
B199: 43
B200: 44
B201: 45
B202: 46
B203: 47
B204: 48
B205: 49
B206: 50
B210: Belastingen / heffingen
C211: Grondwaterbelasting winning | D211: 0.1883 | E211: Eur/m3 onttrekking
C212: Provinciale heffingen | D212: 0.02 | E212: Eur/m3 onttrekking
C213: Belastingteruggave infiltratie | D213: 0.1557 | E213: Eur/m3 infiltratie
B218: 4-4-3 | C218: Onderhoud- / administratie- / specifieke kosten
C219: Algemeen geldende exploitatiekosten voor alle processtappen
B224: ONDERHOUDSKOSTEN
C225: Civiele Techniek / Bouwkunde | D225: 0.5 | E225: % van bouwkosten CT / B
C226: Werktuigbouwkunde | D226: 2 | E226: % van bouwkosten WTB
C227: Elektrotechniek | D227: 4 | E227: % van bouwkosten E
C228: Proces Automatisering | D228: 10 | E228: % van bouwkosten PA
C229: Onderhoud inrichting /algemene voorzieningen | D229: 10 | E229: % van bouwkosten algemene voorzieningen
B234: SPECIFIEKE BEDRIJFSKOSTEN
C235: Personeelskosten (bediening/ onderhoud/optimalseren) | D235: 55000 | E235: Eur per manjaar
C236: Bediening / optimalisatie besturing | D236: 5.203005504 | E236: FTE's verband is personeel(FTE's)= 0,9*bruto productie (Mm3/j) ^0,9
C237: Analysekosten | D237: 3.73 | E237: Eur per KIWA-punt
C238: Beveiligingskosten | D238: 15 | E238: % van bouwkosten beveiliging
B242: ADMINISTRATIEVE BEHEERSKOSTEN
C243: Administratieve beheerskosten | D243: 20 | E243: % van specifieke bedrijfskosten
B249: 4-4-2 | C249: Analysekosten (Kiwa punten) | D249: waarde | E249: punten /jaar | F249: opmerking
B250: 1 | C250: Win of infiltratieputten | D250: 0 | E250: punten /jaar | F250: typisch is &I250&" pnt per Mm3/j
B251: 2 | C251: Innamepompstation | D251: 0 | E251: punten /jaar | F251: typisch is X pnt per Mm3/j
B252: 3 | C252: Microzeving | D252: 0 | E252: punten /jaar
B253: 4 | C253: Cascade beluchting | D253: 0 | E253: punten /jaar
B254: 5 | C254: Plaatbeluchting | D254: 0 | E254: punten /jaar
... 45 more rows
